Workbook

Sheet kuni 2025 detsember tegevuskava (hidden)
A1: Valdkondlik digipööre
A2: Elluviija: | B2: Eesti Linnade ja Valdade Liit | G2: Valdkondliku digipöörde maksumus kokku (2023-2028) meetme nelja tegevuse lõikes, arvestdes kõiki rahasutsallikaid.
A3: Eelarve: | B3: Kokku 2023-2025 | C3: 2023 | D3: 2024 | E3: 2025 | G3: Kokku: | H3: 1. Infotehnoloogiliste lahenduste väljatöötamine ja arendamine | I3: 2. küberruumi hoidmine, arendamine ja juurutamine usaldusväärse ja turvalisena | J3: 3. Teadlikkuse tõstmine | K3: 4. muu digipöördega seotud otsene kulu
A4: KOKKU: | B4: =SUM(C4:E4) -> 2,024,944 | C4: =SUM(C5+C12) -> 179,866 | D4: =SUM(D5+D12) -> 578,052 | E4: =SUM(E5+E12) -> 1,267,026 | G4: =SUM(H4:K4) -> 1,981,987 | H4: =SUMIFS(Q35:Q94,G35:G94,$G$97) -> 485,593 | I4: =SUMIFS(Q35:Q94,G35:G94,$G$98) -> 709,452 | J4: =SUMIFS(Q35:Q94,G35:G94,$G$99) -> 124,000 | K4: =SUMIFS(Q35:Q94,G35:G94,$G$100) -> 662,942
A5: Digipöörde olemasolevad rahalised vahedid | B5: =SUM(C5:E5) -> 359,914 | C5: =SUM(C6:C11) -> 179,866 | D5: =SUM(D6:D11) -> 118,048 | E5: =SUM(E6:E11) -> 62,000
A6: sh baaseelarve | B6: =SUM(C6:E6) -> 274,000 | C6: =SUMIFS(R35:R94,P35:P94,"Baaseelarve") -> 150,000 | D6: =SUMIFS(S35:S94,P35:P94,"Baaseelarve") -> 62,000 | E6: =SUMIFS(T35:T94,P35:P94,"Baaseelarve") -> 62,000
A7: sh muu rahastus | B7: =SUM(C7:E7) -> 0 | C7: =SUMIFS(R35:R94,P35:P94,"Muu rahastus") -> 0 | D7: =SUMIFS(S35:S94,P35:P94,"Muu rahastus") -> 0 | E7: =SUMIFS(T35:T94,P35:P94,"Muu rahastus") -> 0
A8: sh reserv (SR) | B8: =SUM(C8:E8) -> 0 | C8: =SUMIFS(R35:R94,P35:P94,"Reserv (SR)") -> 0 | D8: =SUMIFS(S35:S94,P35:P94,"Reserv (SR)") -> 0 | E8: =SUMIFS(T35:T94,P35:P94,"Reserv (SR)") -> 0
A9: sh RRF | B9: =SUM(C9:D9) -> 42,957 | C9: =SUMIFS(R35:R94,P35:P94,"RRF") -> 14,933 | D9: =SUMIFS(S35:S94,P35:P94,"RRF") -> 28,024
A10: sh SF 14-20 (töös olev projekt) | B10: =SUM(C10:E10) -> 0 | C10: =SUMIFS(R35:R94,P35:P94,"SF 14-20 (töös olev projekt)") -> 0 | D10: =SUMIFS(S35:S94,P35:P94,"SF 14-20 (töös olev projekt)") -> 0 | E10: =SUMIFS(T35:T94,P35:P94,"SF 14-20 (töös olev projekt)") -> 0
A11: RRF | B11: =SUM(C11:E11) -> 42,957 | C11: =SUMIFS(R35:R94,P35:P94,"RRF") -> 14,933 | D11: =SUMIFS(S35:S94,P35:P94,"RRF") -> 28,024 | E11: =SUMIFS(T35:T94,P35:P94,"RRF") -> 0
A12: Digipöörde puuduolevad rahalised vahendid | B12: =SUM(C12:E12) -> 1,665,030 | C12: =SUM(C13:C14) -> 0 | D12: =SUM(D13:D14) -> 460,004 | E12: =SUM(E13:E14) -> 1,205,026
A13: sh RES IKT (vaja juurde taotleda) | B13: =SUM(C13:E13) -> 645,500 | C13: =SUMIFS(R35:R94,P35:P94,"RES IKT (vaja juurde taotleda)") -> 0 | D13: =SUMIFS(S35:S94,P35:P94,"RES IKT (vaja juurde taotleda)") -> 60,000 | E13: =SUMIFS(T35:T94,P35:P94,"RES IKT (vaja juurde taotleda)") -> 585,500 | F13: Puudu olev lisavajadus riigieelarvest, vajadus taotleda RES protsessis.
A14: sh SF 21-27 (taotletav raha) | B14: =SUM(C14:E14) -> 1,019,530 | C14: =SUMIFS(R35:R94,P35:P94,"SF 21-27 (taotletav raha)") -> 0 | D14: =SUMIFS(S35:S94,P35:P94,"SF 21-27 (taotletav raha)") -> 400,004 | E14: =SUMIFS(T35:T94,P35:P94,"SF 21-27 (taotletav raha)") -> 619,526 | F14: Puudu olev lisavajadus SF-st, SF 21-27 valdkondlike digipöörete toetusskeemist.
A16: NB! Mõõdikud tuleb täita ainult SF 2021-2027 rahastuse puhul.
A17: Meetmete nimekirja tulemusnäitaja: | B17: Uute ja uuendatud avalike digiteenuste, -toodete ja -protsesside kasutajad. Mõõtühik: lõppkasutajaid aastas. | J17: Elluviija kommentaar | K17: Käskkirjas välja toodud elluviijate peale kokku on mõõdiku 2029 sihttase 2 000 000. Välja tuua, milline on teie panus selle mõõdiku täitmisse.
A18: Periood | B18: 2023 algtase | C18: 2024 sihttase | D18: 2025 sihttase | E18: 2026 sihttase | F18: 2027 sihttase | G18: 2028 sihttase | H18: 2029 sihttase | I18: 2030 lõpptase
A19: Väärtus | B19: 0 | C19: 0 | D19: 15,000 | I19: 250,000 | K19: Sisestada tuleb täisarv.
A20: Meetmete nimekirja väljundnäitaja: | B20: Uued või uuendatud digiteenused, -tooted ja -protsessid. Mõõtühik: arv | K20: Käskkirjas välja toodud elluviijate peale kokku on mõõdiku 2029 sihttase 35. Välja tuua, milline on teie panus selle mõõdiku täitmisse. Siia tuleb kokku lugeda lõpule viidud uued või uuendatud digiteenused, - tooted ja -protsessid.
A21: Periood | B21: 2023 algtase | C21: 2024 sihttase | D21: 2025 sihttase | E21: 2026 sihttase | F21: 2027 sihttase | G21: 2028 sihttase | H21: 2029 sihttase | I21: 2030 lõpptase
A22: Väärtus | B22: 0 | C22: 0 | D22: 1 | I22: 5 | K22: Kasutuskordade kokku lugemise metoodika määrab elluviija ise arvestades oma valdkonda. Sisestada tuleb täisarv.
A23: Meetmete nimekirja väljundnäitaja: | B23: Avaliku sektori asutused, keda toetatakse digiteenuste, -toodete ja -protsesside väljatöötamiseks. Mõõtühik: Avaliku sektori asutused. | K23: Käskkirjas välja toodud elluviijate peale kokku on mõõdiku 2029 sihttase 35. Välja tuua, milline on teie panus selle mõõdiku täitmisse. Siia tuleb kokku lugeda asutused, kes teie digipöörde raames SF toetust kasutavad (elluviija ja partnerid).
A24: Periood | B24: 2023 algtase | C24: 2024 sihttase | D24: 2025 sihttase | E24: 2026 sihttase | F24: 2027 sihttase | G24: 2028 sihttase | H24: 2029 sihttase | I24: 2030 lõpptase
A25: Väärtus | B25: 0 | C25: 1 | D25: 1 | I25: 1 | K25: Tükkide kokku lugemise metoodika määrab elluviija ise arvestades oma valdkonda. Sisestada tuleb täisarv.
A26: Projektispetsiifiline näitaja (Eesti digiühiskonna arengukava 2030 (DA 2030) mõõdik): | B26: Avalike digiteenustega rahulolu. Mõõtühik: % | K26: Riigiüleselt avalike digiteenustega rahululu peab 2030. aastaks tõusma 90%-le. Välja tuua, milline on teie panus selle mõõdiku täitmisse.
A27: Periood | B27: 2023 algtase | C27: 2024 sihttase | D27: 2025 sihttase | E27: 2026 sihttase | F27: 2027 sihttase | G27: 2028 sihttase | H27: 2029 sihttase | I27: 2030 lõpptase
A28: Väärtus | B28: 0 | C28: 0 | D28: 0 | I28: 90 | K28: Rahulolu kokku lugemise metoodika määrab elluviija ise arvestades oma valdkonda
X32: NB! Kõik summad kajastada ilma käibemaksuta!
A33: Elluviija/ministeerium | B33: Struktuuriüksus | C33: Partner/Asutus | D33: Teenuse vastutaja | E33: DÜAK plokk | F33: Panus arengukava suunda | G33: Meetme toetatav tegevus | H33: TERE teenus | I33: Probleem | J33: Tegevuse (algatuse) nimi | K33: Tulemus | L33: Otsus | M33: Valdkonna prioriteet | N33: Slaid/allikas | O33: Paneeli vajadus | P33: Rahastuse allikas | Q33: Summa kokku | R33: 2023 | S33: 2024 | T33: 2025 | U33: 2026 | V33: 2027 | W33: 2028 | X33: 2023 (Kasutusse võetud vahendid, ehk kohustustega / lepingutega kaetud) | AA33: 2024 | AD33: 2025 | AG33: 2026 | AJ33: 2027 | AM33: 2028 | AP33: Kalkulatsioon ja allika põhjendus Võimalusel kirjeldada siin lahtris, kui on põhjalikum tabeli kujul kalkulatsioon, siis see tuua välja eraldi Exceli lehel ja siin vastava rea lahtris sellele viidata. | AQ33: Tegevuse jätkusuutlikkuse kulu | AR33: Kommentaar | AS33: RES lisavajaduste grupid | AT33: RES lisavajaduste kestvus
A34: Punkt 5.3.1. „Toetuse andmise tingimused valdkondlike digipöörete toetamiseks“ | B34: Valdkond, osakond, kes elluviija juures teema eest vastutab. | C34: Partner/asutus, kelle eelarvest algatusi teostatakse Punkt 5.6. „Toetuse andmise tingimused valdkondlike digipöörete toetamiseks“ | D34: Vastutav teenuseomanik/ projektijuht | E34: (valida rippmenüüst) | F34: (valida rippmenüüst) | G34: (valida rippmenüüst, SF TAT käskkirja punkt 3.1. neli tegevust) | H34: Kirjutada välja TERE teenuse nimetus | I34: Täita kõikide ridade puhul | J34: Täita kõikide ridade puhul (Kui tegmist jätkusuutlikkuse tagamise tegevusega, siis see nimes välja tuua.) | K34: Täita kõikide ridade puhul. Kui mitme aastane tegevus/projekt, siis kirjutada välja vähemalt 2024. ja 2025. aasta tulemus ning lõpptulemus. RES lisavajadustel tuua välja, mida mingi aasta RES rahade eest ära tehakse. Kui lisavajadus on kogu perioodiks ja kulud on aasta-aastalt sama, siis näiteks: 2025-2028 - SF-st arendatu hoolduskulu, väikearendused, majutus riigipilves, jne. Kui tegevused on aastati erinevad, siis tuua need välja järgmiselt: 2025 - 2026 - 2027 - 2028 - | L34: ok- rahastada, nok- mitte rahastada, ?-otsus lahtine | M34: Unikaalne prioriteet | N34: Esitatud slaidi number, või viide allikale, kus on võimalik tutvuda vajadusel sisuga, sh täpsemate kalkulatsioonidega | O34: Anda hinnang, kas on vajadus äri-, andmete-, arhitektuuri-, või muu paneeli järele. NB! Paneelivajadus on igal üle 400 000 euro maksval algatusel/tegevusel. Konkreetne paneel, või paneelid otsustatakse MKM ettepanekul kohtumisel elluviijaga. | P34: (valida rippmenüüst) | X34: Investeering (15) | Y34: Tööjõukulu (50) | Z34: Majandamiskulu (55) | AA34: Investeering (15) | AB34: Tööjõukulu (50) | AC34: Majandamiskulu (55) | AD34: Investeering (15) | AE34: Tööjõukulu (50) | AF34: Majandamiskulu (55) | AG34: Investeering (15) | AH34: Tööjõukulu (50) | AI34: Majandamiskulu (55) | AJ34: Investeering (15) | AK34: Tööjõukulu (50) | AL34: Majandamiskulu (55) | AM34: Investeering (15) | AN34: Tööjõukulu (50) | AO34: Majandamiskulu (55) | AP34: Välja peab olema toodud tegevuste maksumuste arvutused, koos tundide hinna, tundide arvu ja tunnihinna selgitustega. Arenduste puhul lisada tunnihinna põhjendus varasemate hangetega. Inimeste palkamisel peab lähtuma Fontese palgauuringust ja viitama vastavale tööperele. | AQ34: (valida rippmenüüst) | AR34: RES lisavajaduste puhul tuua välja, milliste tabeli SF ridadega on käesolev jätkusuutlikkuse rida seotud. Nt: jätkusuutlikkuse kulu ridadele 38, 39 ja 40. Kui ei ole tegemist jätkusuutlikkuse kuluga, vaid digipöördes eraldiseisva riigieelarvest täiendavat rahastust vajava tegevusega, siis see siin veerus välja tuua. | AS34: 1. Personaalne riik. 2. AI ja andmed. 3. Õigusaktidest tulenevad vajadused. 4. Baasi korrastamine. 5. Küberturvalisus. 6. Mittesõjalised riigikaitselised IKT vajadused. | AT34: RES lisavajaduste puhul tuua välja kas tegemist püsikuluga mis peab minema baasi, või on tegemist ühekordse kuluga konkrteetse(te)l aasta(te)l.
A35: ELVL | D35: ELVL | E35: I: Digiriik | F35: 1.2.1. Avalike teenuste juhtimise ja kasutajakesksuse juurutamine | G35: IV: muu digipöördega seotud otsene kulu | I35: KOV infosüsteemide analüüsi põhjal: KOVidel puudub enamasti ülevaade pakutavatest teenustest Ametnike ega lõppkasutajate rahulolu teenustega reeglina ei mõõdeta Arendusvajadused on enamasti suunatud automatiseerimisele ja käsitöö vähendamisele ametniku poolt Teenuste üle kontroll puudub | J35: KOV avalike teenuste kaardistamise mudel ja ühtne kasutajate rahulolu mõõtmise süsteem | K35: 2024 – projektijuhi värbamine, KOVide KOKSist tulenevate avalike teenuste esmane kaardistamine koostöös MKMi teenuste tiimiga KOV teenuste arendajatega pilootrühma baasil (5 KOVi). Jätkutegevuste kavandamine KOV teenuste esmase kaardistusest tulenevalt. Võimalikud tegevused: teenuste kaardistuse laiendamine kõikidele omavalitsustele; KOV teenuste standardi väljatöötamine ja valideerimine KOVidega; ühtse kasutajate rahulolu mõõtmise mudeli ja süsteemi analüüs 2025 - analüüsi tulemusena kasutajate rahulolu süsteemi arendus ja juurutamine. Lõpptulemus: KOVidel tekib ülevaade oma teenustest ja protsessidest ehk nn äripoole vajadustest; tervikpilt KOV (e-)teenustest ja kattuvusest riigiasutuste teenustega; KOV teenuste seotus sündmusteenustega; kasutajate rahulolu mõõtmine ja parendused on juurutatud teenuse osutamise protsessi. | L35: ok | M35: 1 | N35: 32 | O35: Äripaneel | P35: SF 21-27 (taotletav raha) | Q35: =SUM(R35:W35) -> 172,809 | R35: =SUM(X35:Z35) -> 0 | S35: =SUM(AA35:AC35) -> 57,609 | T35: =SUM(AD35:AF35) -> 115,200 | U35: =SUM(AG35:AI35) -> 0 | V35: =SUM(AJ35:AL35) -> 0 | W35: =SUM(AM35:AO35) -> 0 | AB35: 27,609 | AC35: 30,000 | AE35: 55,200 | AF35: 60,000 | AP35: Teenuste projektijuhi töötasu, 2024 arvestatud 0,5 töökohta; 2025.a 1.0 töökoht. KOV teenuste ühtse kasutajate rahulolu mõõtmise metoodika ja infotehnoloogilise lahenduse väljatöötamine - ca 90 000 eurot. Personaliga seotud otsesed majanduskulud (arvutitöökoht, koolituskulud, sõidukulud) arvestatud ca 4000 eurot aastas. | AQ35: 4. SF tegevus, mis vajab jätkusuutlikkuse kulusid, aga neid pole välja arvutatud ja eraldi real välja toodud | AR35: Eeldame, et loodava IT lahenduse halduskulu maksavad KOVid ise kinni.
A36: ELVL | D36: ELVL | E36: I: Digiriik | F36: 1.2.7. Avaliku sektori digimuutuste võimendamine | G36: III: teadlikkuse tõstmine | I36: KOV infosüsteemide analüüsile tuginedes: KOVide teenustega seotud kompetentsid on madalad Ametnike ega lõppkasutajate rahulolu teenustega reeglina ei mõõdeta Kasutajakeskne mõtteviis puudub, kasutajakogemusega tegelevad vaid üksikud omavalitsused | J36: KOV teenuste omanike arenguprogramm ja KOV digikompetentside kasvatamine | K36: 2024 – koostöös MKMi oskuste tiimi ja KOV personalivõrgustikuga detailsema plaani koostamine KOV digikompetentside kasvatamisekes, koolitusprogrammi hanke läbiviimine. Koolituse korraldamine 2024.a sügisel esmalt pilootgrupiga. Hinnanguliselt koolitatavate arv kokku: 250. Tegevus jätkub 2025.a KOV-ide teenuste eest vastutajad ehk nn äripoole omanikud saavad aru teenuspõhisest juhtimisest ja selleks tehnoloogia kasutamisest, sh turvalisuse, kasutajakogemuse, andmekaitse, teenusedisaini jm põhimõtetest. Koolitustel on suur rõhk praktilistel harjutustel ja grupitööl. Loob eeldused teenuste juhtimise konsolideerimiseks KOV teenusvaldkondades. Pidev tegevus - Digiriigi Akadeemia jt riigi kesksete koolituste teavitustegevus KOVide suunal. | L36: ok | M36: 4 | N36: 33 | O36: Vajadus puudub | P36: SF 21-27 (taotletav raha) | Q36: 100,000 | R36: =SUM(X36:Z36) -> 0 | S36: =SUM(AA36:AC36) -> 50,000 | T36: =SUM(AD36:AF36) -> 50,000 | U36: =SUM(AG36:AI36) -> 0 | V36: =SUM(AJ36:AL36) -> 0 | W36: =SUM(AM36:AO36) -> 0 | AC36: 50,000 | AF36: 50,000 | AP36: Arenguprogrammi maksumuseks on arvestatud 100 000 eurot. Hinnanguline programmi läbinute arv on 250, arvestatud on 400 EUR/inimese kohta. ELVLis on 2023. aastast tööl KOV personalivõrgustiku koordinaator, kes tegeleb personali arendamisega. Tegevuse elluviimine toimub koostöös personali nõunikuga. | AQ36: 5. SF tegevus, mis ei vaja jätkusuutlikkuse kulusid (nt analüüs)
A37: ELVL | D37: ELVL | E37: I: Digiriik | F37: 1.2.7. Avaliku sektori digimuutuste võimendamine | G37: I: Infotehnoloogiliste lahenduste väljatöötamine ja arendamine | I37: KOVidel puudub võimalus viia õiguspäraselt ja turvaliselt virtuaalsetel koosolekutel hääletusi. Praegune VOLIS on legacy, mis tingib teenuse ebastabiilsuse kasutajakoormuse tõusu korral, kasutusel on vananenud tehnoloogia ja kasutajadisain. Kasutajate rahulolu on madal (5,63) | J37: KOV rahvahääletuste ja koosolekute digilahendus | K37: 2024 - 2022.a valminud VOLIS2 analüüsi ülevaatus ja KOVidega koostöös minimaalsete arendatavate funktsionaalsuste kokkuleppimine -> esmalt MVP arendus ehk minimaalne funktsionaalsus. Hankedokumentatsiooni koostamine ja hanke läbiviimine arenduspartneri leidmiseks. Arenduse tulemusena valmib esimese etapina 2025. a KOV rahvahääletuste keskkonna (sh kaasavad eelarved) MVP: kasutajate haldus; hääletussüsteem (sh isikukoodi põhised hääletused ja rahvahääletused); integratsioon rahvastikuregistriga (KOV ja asustusüksuse täpsus). Valminud infosüsteemi saavad KOVid kasutusele võtta teenuslepinguga kuutasu alusel. IS majutatakse pilvelahenduses. | L37: ok | M37: 5 | N37: Eelanalüüs | O37: Äri- ja arhitektuuri paneel läbitud | P37: SF 21-27 (taotletav raha) | Q37: 334,136 | R37: =SUM(X37:Z37) -> 0 | S37: =SUM(AA37:AC37) -> 131,286 | T37: =SUM(AD37:AF37) -> 202,850 | U37: =SUM(AG37:AI37) -> 0 | V37: =SUM(AJ37:AL37) -> 0 | W37: 0 | AA37: 100,000 | AB37: =29286+2000 -> 31,286 | AD37: 170,000 | AE37: 32,850 | AP37: Kalkulatsioon: projektijuht-analüütik 0,6 FTE. Tarkvaraarenduseks on arvestatud 270 000. | AQ37: 4. SF tegevus, mis vajab jätkusuutlikkuse kulusid, aga neid pole välja arvutatud ja eraldi real välja toodud | AR37: Senise VOLIS haldustasu on KOVid ise tasunud teenusepakkujale. Eeldus on, et analoogne mudel toimiks ka uue lahenduse puhul.
A38: ELVL | D38: ELVL | E38: III: Küberturvalisus | F38: 3.3. Suurem küberturvalisuse tagamise võimekus | G38: II: küberruumi hoidmine, arendamine ja juurutamine usaldusväärse ja turvalisena | I38: Kohalike omavalitsuste infoturbe võimekus on endiselt madal. KOVid üha rohkem tunnistavad, et pole võimelised seda valdkonda katma. KOVid ei mõista infoturbe olemust ja vajalikkust, seda peetakse tehniliseks mitte organisatoorseks probleemiks. ISKE dokumentatsioon on enamikul olemas, kuid seda ei järgita. KOVidel puudub keskselt kasutatav andmebaas, kuhu koguda parimaid praktikaid, juhendmaterjali jms | J38: Küberturvalisuse tagamise tugi KOVidele | K38: 2024 – infoturbe spetsialisti värbamine (osalise tööajaga), taustainfo kogumine ja tööplaani koostamine, ELVLi kui organisatsiooni ja digipöörde tegevuste turbevajaduste kaardistamine; KOVide EITS kasutusprofiili koostamisest tulenevad jätkutegevused. E-ITS mentorite võrgustiku käivitamine (tugi KOVilt KOVile E-ITS rakendamisel). Lähteülesande koostamine sobiva lahenduse leidmiseks standardlahenduste kogu platvormi loomiseks ja arenduse tellimine. 2025 - E-ITS rakendamise toe jätkamine (mentorlus, veebiseminarid koostöös RIAga). Parimate praktikate, juhendite ja dokumentatsiooni jagamise keskkonna käivitamine (nn KOV ülene siseveeb). Eesmärk on tõsta teadlikkust ja parandada infoturbe juhtimist KOV-ides. | L38: ok | M38: 2 | N38: 34 | O38: Vajadus puudub | P38: SF 21-27 (taotletav raha) | Q38: 163,952 | R38: 0 | S38: 106,976 | T38: 56,976 | U38: 0 | V38: 0 | W38: 0 | AB38: 56,976 | AC38: 50,000 | AE38: 56,976 | AP38: Töötasu sisaldab infoturbespetsialist töötasu (0,6 FTE) ja E-ITS mentorite tasu. Personaliga seotud otsesed majanduskulud (arvutitöökoht, koolituskulud, sõidukulud) arvestatud ca 4000 eurot aastas. Standardlahenduste kogu analüüs ja arenduskulu on arvestatud ca 50 000 eurot. | AQ38: 4. SF tegevus, mis vajab jätkusuutlikkuse kulusid, aga neid pole välja arvutatud ja eraldi real välja toodud | AR38: Eeldame, et loodava IT lahenduse halduskulu maksavad KOVid ise kinni.
A39: ELVL | D39: ELVL | E39: I: Digiriik | F39: 1.2.2. Andmepõhine riigivalitsemine ja andmete taaskasutus | G39: IV: muu digipöördega seotud otsene kulu | I39: KOVide poolt avaandmete avaldamine on vaevaline. Kuna paljud KOVide poolt kasutatavad infosüsteemid kuuluvad eraettevõtetele peab vajalike liidestuste loomiseks läbi rääkima teenusepakkujaga. RIHAs on mitmed KOVide poolt kasutatavad infosüsteemid registreerimata, vajaliku dokumentatsiooni koostamisega ei saada hakkama. | J39: Avaandmete avaldamise, andmehalduse ja AI tugi KOVidele | K39: 2024 - värbamine; andmete valdkonna KOV hetkeolukorra kaardistus, sh infosüsteemide ja võimalike andmestike kaardistamine. 2024-2025: Osalemine MKMi-RIA andmete töögruppides, sh TSI projektis ning vajaduspõhiselt vahelüli rolli täitmine omavalitsustega kontakti saamisel. Avaandmete avaldamise toe pakkumine KOVidele: avaldatavate andmestike kokkuleppimine, abi andmete ettevalmistamisel ja avaldamisel, automatiseerimise lahenduste analüüs. Andmehalduse raamistiku "tõlkimine" ehk kohandamine KOVide jaoks, sh Rihakese kasutusvõimaluste analüüs. KOV teadlikkuse tõstmine andmete väärtusest ja võimalustest: parimate praktikate otsimine ja jagamine, praktiliste juhendite koostamine. ELVLi poolt Bürokrati piloteerimine KOV üldandmete osas. | L39: ok | M39: 6 | N39: 35 | O39: Vajadus puudub | P39: SF 21-27 (taotletav raha) | Q39: 116,133 | R39: 0 | S39: =SUM(AA39:AC39) -> 42,133 | T39: 74,000 | U39: 0 | V39: 0 | W39: 0 | AB39: 42,133 | AE39: 49,000 | AF39: 25,000 | AP39: Andmete suuna projektijuhi töötasu (1 FTE). Personaliga seotud otsesed majanduskulud (arvutitöökoht, koolituskulud, sõidukulud) arvestatud ca 4000 eurot aastas. 2025. a on arvestatud 25 000 eurot andmete valdkonnaga seotud juhendmaterjali kohendamiseks KOVidele. | AQ39: 5. SF tegevus, mis ei vaja jätkusuutlikkuse kulusid (nt analüüs)
A40: ELVL | D40: ELVL | E40: I: Digiriik | F40: 1.2.6. Avatud innovatsioon ja digiriigi kogukonna arendamine | G40: III: teadlikkuse tõstmine | I40: KOVide koostöö IT valdkonnas on mõnevõrra paranenud ELVL koordineerimisel. Digipöörde käigus saavad osad suunad kaetud, kuid vajalik on hoida ka laiemat vaadet KOV IT juhtimisele ja rollidele. | J40: KOV digivaldkonna kogukonna tugevdamine | K40: KOV IT võrgustiku regulaarsed virtuaalsed lühiseminarid. Sügisel kahepäevase seminari korraldamine. KOV IT juhtimise parimate praktikate jagamise töötoad-kogemuslood (nt IT teenuste korraldus KOVis, võimalused tugiteenuste konsolideerimiseks KOVis, teenustega seotud tarkvarade võrdlus, IT juhtimise mudelid jms). Lisaks eraldi töötoad digipöörde suundade osas (andmed, küber, teenused) Tulemus: KOVid on teadlikumad üksteise parimatest praktikatest, suurenenud on omavaheline koostöö. Suurenenud teadlikkus riigipoolsetest kesksetest lahendustest jne. | L40: ok | M40: 7 | O40: Vajadus puudub | P40: SF 21-27 (taotletav raha) | Q40: 24,000 | R40: 0 | S40: 12,000 | T40: 12,000 | U40: 0 | V40: 0 | W40: 0 | AC40: 12,000 | AF40: 12,000 | AP40: KOV IT juhtimise parimate praktikate jagamise töötoad-kogemuslood (nt IT teenuste korraldus KOVis, võimalused tugiteenuste konsolideerimiseks KOVis, teenustega seotud tarkvarade võrdlus, IT juhtimise mudelid jms). Arvestatud üks füüsilise kohaletulekuga kahepäevane seminar aastas. | AQ40: 5. SF tegevus, mis ei vaja jätkusuutlikkuse kulusid (nt analüüs)
A41: ELVL | D41: ELVL | E41: I: Digiriik | F41: 1.2.7. Avaliku sektori digimuutuste võimendamine | G41: IV: muu digipöördega seotud otsene kulu | I41: ELVL IKT KK on tegutsenud ca 5 aastat, kuid üksuse võimekus on endiselt piiratud. Seni on rohkem keskendutud KOVide kesksete platvormide jätkusuutlikkuse tagamisele ja üldisele koordineerimisele ning KOV teenuste vaade on jäänud tahaplaanile. | J41: ELVL IKT Kompetentsikeskuse baasrahastus | K41: Pidevad tegevused: KOV IT juhtide võrgustiku koordineerimine ja infovahetus, KOVide nõustamine; KOV kesksete lahenduste tootejuhtimine (Anna Teada, Omavalitsuste portaal, VOLIS); Valdkonna õigusaktide kooskõlastamine; digivaldkonna arengudokumentide-tegevuskavade koostamises osalemine ja KOV huvide esindamine. | M41: 8 | O41: Vajadus puudub | P41: Baaseelarve | Q41: 274,000 | R41: 150,000 | S41: 62,000 | T41: 62,000 | U41: 0 | V41: 0 | W41: 0 | Y41: 140,000 | Z41: 10,000 | AB41: 52,000 | AC41: 10,000 | AE41: 52,000 | AF41: 10,000 | AP41: ELVL KOV IKT valdkonna baasrahastus kohalikelt omavalitsustelt. | AQ41: 2. Tegevus on jätkusuutlikkuse kulu (baaseelarve, RES lisataotlus, muu allikas) | AR41: Tegemist on baasrahastusega KOVidelt üldiseks digipöörde elluviimiseks.
A42: ELVL | D42: ELVL | E42: III: Küberturvalisus | F42: 3.3. Suurem küberturvalisuse tagamise võimekus | G42: II: küberruumi hoidmine, arendamine ja juurutamine usaldusväärse ja turvalisena | I42: Kohalike omavalitsuste IKT taristu seis on aegunud. Serverite tarkvara ning riistvara on amortiseerunud. Võrgu ülesehitus on tehtud süsteemitult ning kohati on laiendamine problemaatiline. Serverite hoiustamine ei vasta infoturbe nõuetele. | J42: IKT taristu Riigipilve majutamine soodustingimustel KOVidele | K42: Vahetame välja KOV on-premise legacy serverid tänapäevaste pilvelahenduste vastu Riigipilve on kolinud osaliselt või täielikult 60% KOV-idest ning loobunud enda lokaalsetest serveritest. Tagatud tõhusam riistavara kasutus ning serverite tänapäevasem haldus. | M42: 10 | N42: 36 | O42: Vajadus puudub | P42: RES IKT (vaja juurde taotleda) | Q42: 545,500 | R42: 0 | S42: 0 | T42: 545,500 | U42: 0 | V42: 0 | W42: 0 | AD42: 395,500 | AE42: 50,000 | AF42: 100,000 | AP42: Riigipilves baasressursside majutuse kulu KOV-ile on ca 600 eur kuus. KOV võrguriistvara hankimine, paigaldamine ning seadistamine - 1 KOV-i hinnanguline võrguseadmete kulu 17 500 eurot. KOV serverite migreerimine Riigipilve keskkonda 100 000 EUR. 2-aastat on KOVile Riigipilves IKT taristu majutamine tasuta. Riigipilve tasu kompenseerimine KOVidele toimuks RES vahendite arvelt mitte RITi eelarvest (baastaristu majutus oleks RESi vahenditest ja ülejäänud ressursi eest tasub KOV) | AQ42: 2. Tegevus on jätkusuutlikkuse kulu (baaseelarve, RES lisataotlus, muu allikas) | AR42: RES lisataotlus. Investeeringutega seotud püsikulud tasuvad KOVid hiljem oma eelarvest. | AS42: Küberturvalisus | AT42: ühekordne kulu
A43: ELVL | D43: ELVL | E43: I: Digiriik | F43: 1.2.7. Avaliku sektori digimuutuste võimendamine | G43: IV: muu digipöördega seotud otsene kulu | I43: Omavalitsuste veebilehtede platvorm OVP valmib 2023.a lõpuks. Alates 2024. a saaksid seda kasutusele võtta teised KOVid, kuid esialgu võib klientide hulk olla ebapiisav halduskulu katmiseks. Kuna OVP baseerub Valitsusportaalil, on vajalik hoida KOVide osa ajakohasena kui VPs toimuvad uuendused. | J43: Omavalitsuste portaali ja Anna Teada väikearendused | K43: Omavalitsuste portaali ja Anna Teada väikearenduste ja tarkvara hoolduse kulud. Lisaks vahesumma, mis tekib KOVidelt saadava tulu ja portaali haldamiseks vajalike tegelike kulude vahest, juhul kui piisav hulk KOVe uut platvormi kasutusele ei võta. | M43: 9 | N43: Taotlus ReMile | O43: Vajadus puudub | P43: RES IKT (vaja juurde taotleda) | Q43: 100,000 | R43: 0 | S43: 60,000 | T43: 40,000 | U43: 0 | V43: 0 | W43: 0 | AC43: 60,000 | AF43: 40,000 | AP43: Summa sisaldab Omavalitsuste portaali ja Anna teada infosüsteemi väikearendusi. Vajalik on hoida mõlemad infosüsteemid ajakohased, et oleks tagatud tarkvara turvalisus ja funktsionaalsuste toimivus. | AQ43: 2. Tegevus on jätkusuutlikkuse kulu (baaseelarve, RES lisataotlus, muu allikas) | AR43: Taotletakse Regionaal- ja Põllumajandusministeeriumilt | AS43: Baasi korrastamine | AT43: püsikulu
A44: ELVL | D44: ELVL | E44: I: Digiriik | F44: 1.1.1. Üleminek sündmuspõhistele ja proaktiivsetele teenustele | G44: I: Infotehnoloogiliste lahenduste väljatöötamine ja arendamine | I44: KOV on osa avalikust sektorist ning elanik ei tee tihti vahet riigi ja KOV teenustel. Hetkel ei ole KOV teenuseid liidestatud eesti.ee või riikliku mobiili-rakendusega. Elanik peab KOV teenuste kohta infot otsima KOV veebilehelt, KOV iseteenindusest vms allikast. | J44: KOV teenuste keskse platvormi eelanalüüs | K44: 2024: eelanalüüsi hanke ettevalmistamine; 2025: KOV teenuste keskse platvormi eelanalüüsi läbiviimine ja jätkutegevuste kavandamine lähtuvalt analüüsist. Tegevuse elluviimisel koostöö RIA personaalse riigi osakonnaga. | L44: ok | M44: 3 | O44: Äripaneel | P44: SF 21-27 (taotletav raha) | Q44: 108,500 | R44: 0 | S44: 0 | T44: 108,500 | U44: 0 | V44: 0 | W44: 0 | AE44: 28,500 | AF44: 80,000 | AP44: Eelanalüüsi maksumuseks on arvestatud ca 80 000 eurot lähtuvalt varasemast kogemusest analüüside tellimisel. Lähteülesande koostamise käigus summa täpsustub (sõltub analüüsi skoobist). Lisaks on arvestatud 2025. a personalikulu 0,5 FTE ulatuses projekti juhtimiseks. | AQ44: 5. SF tegevus, mis ei vaja jätkusuutlikkuse kulusid (nt analüüs)
A45: ELVL | D45: ELVL | E45: I: Digiriik | F45: 1.1.1. Üleminek sündmuspõhistele ja proaktiivsetele teenustele | G45: I: Infotehnoloogiliste lahenduste väljatöötamine ja arendamine | I45: 2023.a on teostatud I etapp ehk infoteenus eesti.ee. Hetkel ei ole võimalik eesti.ee kaudu KOV teenuseid taotleda. | J45: Lähedase surma sündmusteenuse juhtimine | K45: 2024: Pilootprojekt kolme KOV-iga matusetoetuse taotluse info kuvamiseks eesti.ee-s, andmevahetuse analüüs ja prototüüp. Pärismispildi analüüsi ettevalmistus | N45: Koostööleping MKMiga | P45: RRF | Q45: 42,957 | R45: 14,933 | S45: 28,024 | T45: 0 | U45: 0 | V45: 0 | W45: 0 | Y45: 12,647 | Z45: 2,286 | AB45: 19,524 | AC45: 8,500 | AP45: Tööjõukulud ja töökohaga seotud majanduskulud Tõlke- ja toimetamiskulud Kommunikatsioonitegevused Konsultatsioonikulud | AQ45: 1. Baaseelarve tegevus, mis sisaldab jätkusuutlikkuse kulusid ja need on samal real välja toodud | AR45: RRFist rahastatud tegevus ELVL ja MKMi vahelise koostöölepingu alusel
Q46: 0 | R46: 0 | S46: 0 | T46: 0 | U46: 0 | V46: 0 | W46: 0
Q47: 0 | R47: 0 | S47: 0 | T47: 0 | U47: 0 | V47: 0 | W47: 0
Q48: 0 | R48: 0 | S48: 0 | T48: 0 | U48: 0 | V48: 0 | W48: 0
Q49: 0 | R49: 0 | S49: 0 | T49: 0 | U49: 0 | V49: 0 | W49: 0
Q50: 0 | R50: 0 | S50: 0 | T50: 0 | U50: 0 | V50: 0 | W50: 0
Q51: 0 | R51: 0 | S51: 0 | T51: 0 | U51: 0 | V51: 0 | W51: 0
Q52: 0 | R52: 0 | S52: 0 | T52: 0 | U52: 0 | V52: 0 | W52: 0
Q53: 0 | R53: 0 | S53: 0 | T53: 0 | U53: 0 | V53: 0 | W53: 0
Q54: 0 | R54: 0 | S54: 0 | T54: 0 | U54: 0 | V54: 0 | W54: 0
Q55: 0 | R55: 0 | S55: 0 | T55: 0 | U55: 0 | V55: 0 | W55: 0
Q56: 0 | R56: 0 | S56: 0 | T56: 0 | U56: 0 | V56: 0 | W56: 0
Q57: 0 | R57: 0 | S57: 0 | T57: 0 | U57: 0 | V57: 0 | W57: 0
Q58: 0 | R58: 0 | S58: 0 | T58: 0 | U58: 0 | V58: 0 | W58: 0
Q59: 0 | R59: 0 | S59: 0 | T59: 0 | U59: 0 | V59: 0 | W59: 0
Q60: 0 | R60: 0 | S60: 0 | T60: 0 | U60: 0 | V60: 0 | W60: 0
Q61: 0 | R61: 0 | S61: 0 | T61: 0 | U61: 0 | V61: 0 | W61: 0
Q62: 0 | R62: 0 | S62: 0 | T62: 0 | U62: 0 | V62: 0 | W62: 0
Q63: 0 | R63: 0 | S63: 0 | T63: 0 | U63: 0 | V63: 0 | W63: 0
Q64: 0 | R64: 0 | S64: 0 | T64: 0 | U64: 0 | V64: 0 | W64: 0
Q65: 0 | R65: 0 | S65: 0 | T65: 0 | U65: 0 | V65: 0 | W65: 0
Q66: 0 | R66: 0 | S66: 0 | T66: 0 | U66: 0 | V66: 0 | W66: 0
Q67: 0 | R67: 0 | S67: 0 | T67: 0 | U67: 0 | V67: 0 | W67: 0
Q68: 0 | R68: 0 | S68: 0 | T68: 0 | U68: 0 | V68: 0 | W68: 0
Q69: 0 | R69: 0 | S69: 0 | T69: 0 | U69: 0 | V69: 0 | W69: 0
Q70: 0 | R70: 0 | S70: 0 | T70: 0 | U70: 0 | V70: 0 | W70: 0
Q71: 0 | R71: 0 | S71: 0 | T71: 0 | U71: 0 | V71: 0 | W71: 0
Q72: 0 | R72: 0 | S72: 0 | T72: 0 | U72: 0 | V72: 0 | W72: 0
Q73: 0 | R73: 0 | S73: 0 | T73: 0 | U73: 0 | V73: 0 | W73: 0
Q74: 0 | R74: 0 | S74: 0 | T74: 0 | U74: 0 | V74: 0 | W74: 0
Q75: 0 | R75: 0 | S75: 0 | T75: 0 | U75: 0 | V75: 0 | W75: 0
Q76: 0 | R76: 0 | S76: 0 | T76: 0 | U76: 0 | V76: 0 | W76: 0
Q77: 0 | R77: 0 | S77: 0 | T77: 0 | U77: 0 | V77: 0 | W77: 0
Q78: 0 | R78: 0 | S78: 0 | T78: 0 | U78: 0 | V78: 0 | W78: 0
Q79: 0 | R79: 0 | S79: 0 | T79: 0 | U79: 0 | V79: 0 | W79: 0
Q80: 0 | R80: 0 | S80: 0 | T80: 0 | U80: 0 | V80: 0 | W80: 0
Q81: 0 | R81: 0 | S81: 0 | T81: 0 | U81: 0 | V81: 0 | W81: 0
Q82: 0 | R82: 0 | S82: 0 | T82: 0 | U82: 0 | V82: 0 | W82: 0
Q83: 0 | R83: 0 | S83: 0 | T83: 0 | U83: 0 | V83: 0 | W83: 0
Q84: 0 | R84: 0 | S84: 0 | T84: 0 | U84: 0 | V84: 0 | W84: 0
Q85: 0 | R85: 0 | S85: 0 | T85: 0 | U85: 0 | V85: 0 | W85: 0
Q86: 0 | R86: 0 | S86: 0 | T86: 0 | U86: 0 | V86: 0 | W86: 0
Q87: 0 | R87: 0 | S87: 0 | T87: 0 | U87: 0 | V87: 0 | W87: 0
Q88: 0 | R88: 0 | S88: 0 | T88: 0 | U88: 0 | V88: 0 | W88: 0
Q89: 0 | R89: 0 | S89: 0 | T89: 0 | U89: 0 | V89: 0 | W89: 0
Q90: 0 | R90: 0 | S90: 0 | T90: 0 | U90: 0 | V90: 0 | W90: 0
Q91: 0 | R91: 0 | S91: 0 | T91: 0 | U91: 0 | V91: 0 | W91: 0
Q92: 0 | R92: 0 | S92: 0 | T92: 0 | U92: 0 | V92: 0 | W92: 0
Q93: 0 | R93: 0 | S93: 0 | T93: 0 | U93: 0 | V93: 0 | W93: 0
Q94: 1,981,987 | R94: 164,933 | S94: 550,028 | T94: 1,267,026 | U94: 0 | V94: 0 | W94: 0 | X94: =SUM(X35:X93) -> 0 | Y94: =SUM(Y35:Y93) -> 152,647 | Z94: 12,286 | AA94: 100,000 | AB94: 229,528 | AC94: 220,500 | AD94: 565,500 | AE94: 324,526 | AF94: 377,000
X95: =SUM(X97+X100+X103+X106+X112+X115+X118+X121+X127+X130+X133+X136) -> 0 | Y95: 152,647 | Z95: 12,286 | AA95: 100,000 | AB95: 229,528 | AC95: 220,500 | AD95: 565,500 | AE95: 324,526 | AF95: 377,000
U96: SF 21-27 (taotletav raha)
E97: I: Digiriik | F97: 1.1.1. Üleminek sündmuspõhistele ja proaktiivsetele teenustele | G97: I: Infotehnoloogiliste lahenduste väljatöötamine ja arendamine | P97: Baaseelarve | U97: 1. Infotehnoloogiliste lahenduste väljatöötamine ja arendamine | X97: =SUMIFS($X$35:$X$93,$G$35:$G$93,$G$97,$P$35:$P$93,"SF 21-27 (taotletav raha)") -> 0 | Y97: =SUMIFS($Y$35:$Y$93,$G$35:$G$93,$G$97,$P$35:$P$93,"SF 21-27 (taotletav raha)") -> 0 | Z97: =SUMIFS($Z$35:$Z$93,$G$35:$G$93,$G$97,$P$35:$P$93,"SF 21-27 (taotletav raha)") -> 0 | AA97: =SUMIFS($AA$35:$AA$93,$G$35:$G$93,$G$97,$P$35:$P$93,"SF 21-27 (taotletav raha)") -> 100,000 | AB97: =SUMIFS($AB$35:$AB$93,$G$35:$G$93,$G$97,$P$35:$P$93,"SF 21-27 (taotletav raha)") -> 31286 | AC97: =SUMIFS($AC$35:$AC$93,$G$35:$G$93,$G$97,$P$35:$P$93,"SF 21-27 (taotletav raha)") -> 0 | AD97: =SUMIFS($AD$35:$AD$93,$G$35:$G$93,$G$97,$P$35:$P$93,"SF 21-27 (taotletav raha)") -> 170000 | AE97: =SUMIFS($AE$35:$AE$93,$G$35:$G$93,$G$97,$P$35:$P$93,"SF 21-27 (taotletav raha)") -> 61350 | AF97: =SUMIFS($AF$35:$AF$93,$G$35:$G$93,$G$97,$P$35:$P$93,"SF 21-27 (taotletav raha)") -> 80000 | AQ97: 1. Baaseelarve tegevus, mis sisaldab jätkusuutlikkuse kulusid ja need on samal real välja toodud
E98: II: Ühenduvus | F98: 1.1.2. Krativäeline riik | G98: II: küberruumi hoidmine, arendamine ja juurutamine usaldusväärse ja turvalisena | P98: Muu rahastus | U98: +km | X98: =X97*1.2 -> 0 | Y98: =Y97 -> 0 | Z98: =Z97*1.2 -> 0 | AA98: =AA97*1.22 -> 122,000 | AB98: =AB97 -> 31,286 | AC98: =AC97*1.22 -> 0 | AD98: =AD97*1.22 -> 207,400 | AE98: =AE97 -> 61,350 | AF98: =AF97*1.22 -> 97,600 | AQ98: 2. Tegevus on jätkusuutlikkuse kulu (baaseelarve, RES lisataotlus, muu allikas)
E99: III: Küberturvalisus | F99: 1.1.3. Inimkeskne Digiriik | G99: III: teadlikkuse tõstmine | P99: RES IKT (vaja juurde taotleda) | AQ99: 3. SF tegevus, mis vajab jätkusuutlikkuse kulusid ja need on eraldi real välja toodud
F100: 1.1.4. Roheline digiriik | G100: IV: muu digipöördega seotud otsene kulu | P100: Reserv (SR) | U100: 2. küberruumi hoidmine, arendamine ja juurutamine usaldusväärse ja turvalisena | X100: =SUMIFS(X35:X93,G35:G93,$G$98,P35:P93,"SF 21-27 (taotletav raha)") -> 0 | Y100: =SUMIFS(Y35:Y93,G35:G93,$G$98,P35:P93,"SF 21-27 (taotletav raha)") -> 0 | Z100: =SUMIFS(Z35:Z93,G35:G93,$G$98,P35:P93,"SF 21-27 (taotletav raha)") -> 0 | AA100: =SUMIFS(AA35:AA93,G35:G93,$G$98,P35:P93,"SF 21-27 (taotletav raha)") -> 0 | AB100: =SUMIFS(AB35:AB93,G35:G93,$G$98,P35:P93,"SF 21-27 (taotletav raha)") -> 56976 | AC100: =SUMIFS(AC35:AC93,G35:G93,$G$98,P35:P93,"SF 21-27 (taotletav raha)") -> 50000 | AD100: =SUMIFS(AD35:AD93,G35:G93,$G$98,P35:P93,"SF 21-27 (taotletav raha)") -> 0 | AE100: =SUMIFS(AE35:AE93,G35:G93,$G$98,P35:P93,"SF 21-27 (taotletav raha)") -> 56976 | AF100: =SUMIFS(AF35:AF93,G35:G93,$G$98,P35:P93,"SF 21-27 (taotletav raha)") -> 0 | AQ100: 4. SF tegevus, mis vajab jätkusuutlikkuse kulusid, aga neid pole välja arvutatud ja eraldi real välja toodud
F101: 1.2.1. Avalike teenuste juhtimise ja kasutajakesksuse juurutamine | P101: RRF | U101: +km | X101: =X100*1.2 -> 0 | Y101: =Y100 -> 0 | Z101: =Z100*1.2 -> 0 | AA101: =AA100*1.22 -> 0 | AB101: =AB100 -> 56,976 | AC101: =AC100*1.22 -> 61,000 | AD101: =AD100*1.22 -> 0 | AE101: =AE100 -> 56,976 | AF101: =AF100*1.22 -> 0 | AQ101: 5. SF tegevus, mis ei vaja jätkusuutlikkuse kulusid (nt analüüs)
F102: 1.2.2. Andmepõhine riigivalitsemine ja andmete taaskasutus | P102: SF 14-20 (töös olev projekt)
F103: 1.2.3. Tulevikukindlad digiriigi platvormid | P103: SF 21-27 (taotletav raha) | U103: 3. teadlikkuse tõstmine | X103: =SUMIFS(X35:X93,G35:G93,$G$99,P35:P93,"SF 21-27 (taotletav raha)") -> 0 | Y103: =SUMIFS(Y35:Y93,G35:G93,$G$99,P35:P93,"SF 21-27 (taotletav raha)") -> 0 | Z103: =SUMIFS(Z35:Z93,G35:G93,$G$99,P35:P93,"SF 21-27 (taotletav raha)") -> 0 | AA103: =SUMIFS(AA35:AA93,G35:G93,$G$99,P35:P93,"SF 21-27 (taotletav raha)") -> 0 | AB103: =SUMIFS(AB35:AB93,G35:G93,$G$99,P35:P93,"SF 21-27 (taotletav raha)") -> 0 | AC103: =SUMIFS(AC35:AC93,G35:G93,$G$99,P35:P93,"SF 21-27 (taotletav raha)") -> 62000 | AD103: =SUMIFS(AD35:AD93,G35:G93,$G$99,P35:P93,"SF 21-27 (taotletav raha)") -> 0 | AE103: =SUMIFS(AE35:AE93,G35:G93,$G$99,P35:P93,"SF 21-27 (taotletav raha)") -> 0 | AF103: =SUMIFS(AF35:AF93,G35:G93,$G$99,P35:P93,"SF 21-27 (taotletav raha)") -> 62000
F104: 1.2.4. Keskselt osutatud IT-alusteenused | U104: +km | X104: =X103*1.2 -> 0 | Y104: =Y103 -> 0 | Z104: =Z103*1.2 -> 0 | AA104: =AA103*1.22 -> 0 | AB104: =AB103 -> 0 | AC104: =AC103*1.22 -> 75,640 | AD104: =AD103*1.22 -> 0 | AE104: =AE103 -> 0 | AF104: =AF103*1.22 -> 75,640
F105: 1.2.5. Uute lähenemisviiside pidev katsetamine
F106: 1.2.6. Avatud innovatsioon ja digiriigi kogukonna arendamine | U106: 4. muu digipöördega seotud otsene kulu | X106: =SUMIFS(X35:X93,G35:G93,$G$100,P35:P93,"SF 21-27 (taotletav raha)") -> 0 | Y106: =SUMIFS(Y35:Y93,G35:G93,$G$100,P35:P93,"SF 21-27 (taotletav raha)") -> 0 | Z106: =SUMIFS(Z35:Z93,G35:G93,$G$100,P35:P93,"SF 21-27 (taotletav raha)") -> 0 | AA106: =SUMIFS(AA35:AA93,G35:G93,$G$100,P35:P93,"SF 21-27 (taotletav raha)") -> 0 | AB106: =SUMIFS(AB35:AB93,G35:G93,$G$100,P35:P93,"SF 21-27 (taotletav raha)") -> 69742 | AC106: =SUMIFS(AC35:AC93,G35:G93,$G$100,P35:P93,"SF 21-27 (taotletav raha)") -> 30000 | AD106: =SUMIFS(AD35:AD93,G35:G93,$G$100,P35:P93,"SF 21-27 (taotletav raha)") -> 0 | AE106: =SUMIFS(AE35:AE93,G35:G93,$G$100,P35:P93,"SF 21-27 (taotletav raha)") -> 104200 | AF106: =SUMIFS(AF35:AF93,G35:G93,$G$100,P35:P93,"SF 21-27 (taotletav raha)") -> 85000
F107: 1.2.7. Avaliku sektori digimuutuste võimendamine | U107: +km | X107: =X106*1.2 -> 0 | Y107: =Y106 -> 0 | Z107: =Z106*1.2 -> 0 | AA107: =AA106*1.22 -> 0 | AB107: =AB106 -> 69,742 | AC107: =AC106*1.22 -> 36,600 | AD107: =AD106*1.22 -> 0 | AE107: =AE106 -> 104,200 | AF107: =AF106*1.22 -> 103,700
F108: 1.2.8. Sihitud väliskoostöö
F109: 2.1. Ajakohane ja ettevaatav õigusruum
F110: 2.2. Juurdepääsuvõrkude väljaarendamine
F111: 2.3. 5G- ja 6G-baastaristu arendamine | U111: Olemasolevad vahendid
F112: 2.4. Uudsete sisu- ja äriteenuste arendus | U112: 1. Infotehnoloogiliste lahenduste väljatöötamine ja arendamine | X112: =SUMIFS(X$35:X$93, $G$35:$G$93, $G$97, $P$35:$P$93, "Baaseelarve")+SUMIFS(X$35:X$93, $G$35:$G$93, $G$97, $P$35:$P$93, "Muu rahastus")+SUMIFS(X$35:X$93, $G$35:$G$93, $G$97, $P$35:$P$93, "Reserv (SR)")+SUMIFS(X$35:X$93, $G$35:$G$93, $G$97, $P$35:$P$93, "RRF")+SUMIFS(X$35:X$93, $G$35:$G$93, $G$97, $P$35:$P$93, "SF 14-20 (töös olev projekt)") -> 0 | Y112: 12,647 | Z112: 2,286 | AA112: 0 | AB112: 19,524 | AC112: 8,500 | AD112: 0 | AE112: 0 | AF112: 0
F113: 3.1. Ajakohane küberturvalisuse riiklik korraldus | U113: +km | X113: =X112*1.2 -> 0 | Y113: =Y112 -> 12,647 | Z113: =Z112*1.2 -> 2,743 | AA113: =AA112*1.22 -> 0 | AB113: =AB112 -> 19,524 | AC113: =AC112*1.22 -> 10,370 | AD113: =AD112*1.22 -> 0 | AE113: =AE112 -> 0 | AF113: =AF112*1.22 -> 0
F114: 3.2. Suundumiste, riskide ja mõjude analüüsivõime
F115: 3.3. Suurem küberturvalisuse tagamise võimekus | U115: 2. küberruumi hoidmine, arendamine ja juurutamine usaldusväärse ja turvalisena | X115: =SUMIFS(X$35:X$93, $G$35:$G$93, $G$98, $P$35:$P$93, "Baaseelarve")+SUMIFS(X$35:X$93, $G$35:$G$93, $G$98, $P$35:$P$93, "Muu rahastus")+SUMIFS(X$35:X$93, $G$35:$G$93, $G$98, $P$35:$P$93, "Reserv (SR)")+SUMIFS(X$35:X$93, $G$35:$G$93, $G$98, $P$35:$P$93, "RRF")+SUMIFS(X$35:X$93, $G$35:$G$93, $G$98, $P$35:$P$93, "SF 14-20 (töös olev projekt)") -> 0 | Y115: 0 | Z115: 0 | AA115: 0 | AB115: 0 | AC115: 0 | AD115: 0 | AE115: 0 | AF115: 0
U116: +km | X116: =X115*1.2 -> 0 | Y116: =Y115 -> 0 | Z116: =Z115*1.2 -> 0 | AA116: =AA115*1.22 -> 0 | AB116: =AB115 -> 0 | AC116: =AC115*1.22 -> 0 | AD116: =AD115*1.22 -> 0 | AE116: =AE115 -> 0 | AF116: =AF115*1.22 -> 0
U118: 3. teadlikkuse tõstmine | X118: =SUMIFS(X$35:X$93, $G$35:$G$93, $G$99, $P$35:$P$93, "Baaseelarve")+SUMIFS(X$35:X$93, $G$35:$G$93, $G$99, $P$35:$P$93, "Muu rahastus")+SUMIFS(X$35:X$93, $G$35:$G$93, $G$99, $P$35:$P$93, "Reserv (SR)")+SUMIFS(X$35:X$93, $G$35:$G$93, $G$99, $P$35:$P$93, "RRF")+SUMIFS(X$35:X$93, $G$35:$G$93, $G$99, $P$35:$P$93, "SF 14-20 (töös olev projekt)") -> 0 | Y118: 0 | Z118: 0 | AA118: 0 | AB118: 0 | AC118: 0 | AD118: 0 | AE118: 0 | AF118: 0
U119: +km | X119: =X118*1.2 -> 0 | Y119: =Y118 -> 0 | Z119: =Z118*1.2 -> 0 | AA119: =AA118*1.22 -> 0 | AB119: =AB118 -> 0 | AC119: =AC118*1.22 -> 0 | AD119: =AD118*1.22 -> 0 | AE119: =AE118 -> 0 | AF119: =AF118*1.22 -> 0
U121: 4. muu digipöördega seotud otsene kulu | X121: =SUMIFS(X$35:X$93, $G$35:$G$93, $G$100, $P$35:$P$93, "Baaseelarve")+SUMIFS(X$35:X$93, $G$35:$G$93, $G$100, $P$35:$P$93, "Muu rahastus")+SUMIFS(X$35:X$93, $G$35:$G$93, $G$100, $P$35:$P$93, "Reserv (SR)")+SUMIFS(X$35:X$93, $G$35:$G$93, $G$100, $P$35:$P$93, "RRF")+SUMIFS(X$35:X$93, $G$35:$G$93, $G$100, $P$35:$P$93, "SF 14-20 (töös olev projekt)") -> 0 | Y121: 140,000 | Z121: 10,000 | AA121: 0 | AB121: 52,000 | AC121: 10,000 | AD121: 0 | AE121: 52,000 | AF121: 10,000
U122: +km | X122: =X121*1.2 -> 0 | Y122: =Y121 -> 140,000 | Z122: =Z121*1.2 -> 12,000 | AA122: =AA121*1.22 -> 0 | AB122: =AB121 -> 52,000 | AC122: =AC121*1.22 -> 12,200 | AD122: =AD121*1.22 -> 0 | AE122: =AE121 -> 52,000 | AF122: =AF121*1.22 -> 12,200
U126: RES IKT (vaja juurde taotleda)
U127: 1. Infotehnoloogiliste lahenduste väljatöötamine ja arendamine | X127: =SUMIFS(X$35:X$93,$G$35:$G$93,$G$97,$P$35:$P$93,$P$99) -> 0 | Y127: 0 | Z127: 0 | AA127: 0 | AB127: 0 | AC127: 0 | AD127: 0 | AE127: 0 | AF127: 0
U128: +km | X128: =X127*1.2 -> 0 | Y128: =Y127 -> 0 | Z128: =Z127*1.2 -> 0 | AA128: =AA127*1.22 -> 0 | AB128: =AB127 -> 0 | AC128: =AC127*1.22 -> 0 | AD128: =AD127*1.22 -> 0 | AE128: =AE127 -> 0 | AF128: =AF127*1.22 -> 0
U130: 2. küberruumi hoidmine, arendamine ja juurutamine usaldusväärse ja turvalisena | X130: =SUMIFS(X$35:X$93,$G$35:$G$93,$G$98,$P$35:$P$93,$P$99) -> 0 | Y130: 0 | Z130: 0 | AA130: 0 | AB130: 0 | AC130: 0 | AD130: 395,500 | AE130: 50,000 | AF130: 100,000
U131: +km | X131: =X130*1.2 -> 0 | Y131: =Y130 -> 0 | Z131: =Z130*1.2 -> 0 | AA131: =AA130*1.22 -> 0 | AB131: =AB130 -> 0 | AC131: =AC130*1.22 -> 0 | AD131: =AD130*1.22 -> 482,510 | AE131: =AE130 -> 50,000 | AF131: =AF130*1.22 -> 122,000
U133: 3. teadlikkuse tõstmine | X133: =SUMIFS(X$35:X$93,$G$35:$G$93,$G$99,$P$35:$P$93,$P$99) -> 0 | Y133: 0 | Z133: 0 | AA133: 0 | AB133: 0 | AC133: 0 | AD133: 0 | AE133: 0 | AF133: 0
U134: +km | X134: =X133*1.2 -> 0 | Y134: =Y133 -> 0 | Z134: =Z133*1.2 -> 0 | AA134: =AA133*1.22 -> 0 | AB134: =AB133 -> 0 | AC134: =AC133*1.22 -> 0 | AD134: =AD133*1.22 -> 0 | AE134: =AE133 -> 0 | AF134: =AF133*1.22 -> 0
U136: 4. muu digipöördega seotud otsene kulu | X136: =SUMIFS(X$35:X$93,$G$35:$G$93,$G$100,$P$35:$P$93,$P$99) -> 0 | Y136: 0 | Z136: 0 | AA136: 0 | AB136: 0 | AC136: 60,000 | AD136: 0 | AE136: 0 | AF136: 40,000
U137: +km | X137: =X136*1.2 -> 0 | Y137: =Y136 -> 0 | Z137: =Z136*1.2 -> 0 | AA137: =AA136*1.22 -> 0 | AB137: =AB136 -> 0 | AC137: =AC136*1.22 -> 73,200 | AD137: =AD136*1.22 -> 0 | AE137: =AE136 -> 0 | AF137: =AF136*1.22 -> 48,800

Sheet Seirearuanne (hidden)
A1: Valdkonna digipööre
A2: Elluviija: | B2: Eesti Linnade ja Valdade Liit
A3: Eelarve: | B3: Kokku | C3: 2023 | D3: 2024
A4: KOKKU: | B4: =SUM(C4:D4) -> 1,547,118 | C4: =SUM(C5+C12) -> 190,218 | D4: =SUM(D5+D12) -> 1,356,900
A5: Digipöörde olemasolevad rahalised vahedid | B5: =SUM(C5:D5) -> 212,000 | C5: =SUM(C6:C11) -> 150,000 | D5: =SUM(D6:D11) -> 62,000
A6: sh baaseelarve | B6: =SUM(C6:D6) -> 212,000 | C6: =SUMIFS(Q35:Q94,O35:O94,"Baaseelarve") -> 150,000 | D6: =SUMIFS(R35:R94,O35:O94,"Baaseelarve") -> 62,000
A7: sh muu rahastus | B7: 0 | C7: =SUMIFS(Q35:Q94,O35:O94,"Muu rahastus") -> 0 | D7: =SUMIFS(R35:R94,O35:O94,"Muu rahastus") -> 0
A8: sh reserv (SR) | B8: 0 | C8: =SUMIFS(Q35:Q94,O35:O94,"Reserv (SR)") -> 0 | D8: =SUMIFS(R35:R94,O35:O94,"Reserv (SR)") -> 0
A9: sh RRF | B9: 0 | C9: =SUMIFS(Q35:Q94,O35:O94,"RRF") -> 0 | D9: =SUMIFS(R35:R94,O35:O94,"RRF") -> 0
A10: sh SF 14-20 (töös olev projekt) | B10: 0 | C10: =SUMIFS(Q35:Q94,O35:O94,"SF 14-20 (töös olev projekt)") -> 0 | D10: =SUMIFS(R35:R94,O35:O94,"SF 14-20 (töös olev projekt)") -> 0
A11: RRF | B11: =SUM(C11:D11) -> 0
A12: Digipöörde puuduolevad rahalised vahendid | B12: 1,335,118 | C12: =SUM(C13:C14) -> 40,218 | D12: =SUM(D13:D14) -> 1,294,900
A13: sh RES IKT (vaja juurde taotleda) | B13: 605,500 | C13: =SUMIFS(Q35:Q95,O35:O95,"RES IKT (vaja juurde taotleda)") -> 0 | D13: =SUMIFS(R35:R95,O35:O95,"RES IKT (vaja juurde taotleda)") -> 605,500 | E13: Puudu olev jätkusuutlikkuse RES rahastus
A14: sh SF 21-27 (taotletav raha) | B14: 729,618 | C14: =SUMIFS(Q35:Q94,O35:O94,"SF 21-27 (taotletav raha)") -> 40,218 | D14: =SUMIFS(R35:R94,O35:O94,"SF 21-27 (taotletav raha)") -> 689,400
A16: NB! Mõõdikud tuleb täita ainult SF 2021-2027 rahastuse puhul.
A17: Meetmete nimekirja tulemusnäitaja: | B17: Uute ja uuendatud avalike digiteenuste, -toodete ja -protsesside kasutajad. Mõõtühik: lõppkasutajaid aastas. | J17: Elluviija kommentaar | K17: Käskkirjas välja toodud elluviijate peale kokku on mõõdiku 2029 sihttase 2 000 000. Välja tuua, milline on teie panus selle mõõdiku täitmisse.
A18: Algtase | B18: 2023 algtase | C18: 2024 sihttase | D18: 2025 sihttase | E18: 2026 sihttase | F18: 2027 sihttase | G18: 2028 sihttase | H18: 2029 sihttase | I18: 2030 lõpptase
A19: Lõpptase | B19: 0 | I19: 250,000 | K19: Sisestada tuleb täisarv.
A20: Meetmete nimekirja väljundnäitaja: | B20: Uued või uuendatud digiteenused, -tooted ja -protsessid. Mõõtühik: arv | K20: Käskkirjas välja toodud elluviijate peale kokku on mõõdiku 2029 sihttase 35. Välja tuua, milline on teie panus selle mõõdiku täitmisse. Siia tuleb kokku lugeda lõpule viidud uued või uuendatud digiteenused, - tooted ja -protsessid.
A21: Algtase | B21: 2023 algtase | C21: 2024 sihttase | D21: 2025 sihttase | E21: 2026 sihttase | F21: 2027 sihttase | G21: 2028 sihttase | H21: 2029 sihttase | I21: 2030 lõpptase
A22: Lõpptase | B22: 0 | I22: 10 | K22: Kasutuskordade kokku lugemise metoodika määrab elluviija ise arvestades oma valdkonda. Sisestada tuleb täisarv.
A23: Meetmete nimekirja väljundnäitaja: | B23: Avaliku sektori asutused, keda toetatakse digiteenuste, -toodete ja -protsesside väljatöötamiseks. Mõõtühik: Avaliku sektori asutused. | K23: Käskkirjas välja toodud elluviijate peale kokku on mõõdiku 2029 sihttase 35. Välja tuua, milline on teie panus selle mõõdiku täitmisse. Siia tuleb kokku lugeda asutused, kes teie digipöörde raames SF toetust kasutavad (elluviija ja partnerid).
A24: Algtase | B24: 2023 algtase | C24: 2024 sihttase | D24: 2025 sihttase | E24: 2026 sihttase | F24: 2027 sihttase | G24: 2028 sihttase | H24: 2029 sihttase | I24: 2030 lõpptase
A25: Lõpptase | B25: 0 | I25: 1 | K25: Tükkide kokku lugemise metoodika määrab elluviija ise arvestades oma valdkonda. Sisestada tuleb täisarv.
A26: Projektispetsiifiline näitaja (Eesti digiühiskonna arengukava 2030 (DA 2030) mõõdik): | B26: Avalike digiteenustega rahulolu. Mõõtühik: % | K26: Riigiüleselt avalike digiteenustega rahululu peab 2030. aastaks tõusma 90%-le. Välja tuua, milline on teie panus selle mõõdiku täitmisse.
A27: Algtase | B27: 2023 algtase | C27: 2024 sihttase | D27: 2025 sihttase | E27: 2026 sihttase | F27: 2027 sihttase | G27: 2028 sihttase | H27: 2029 sihttase | I27: 2030 lõpptase
A28: Lõpptase 2030 | B28: 0 | I28: 90% | K28: Rahulolu kokku lugemise metoodika määrab elluviija ise arvestades oma valdkonda
V32: NB! Kõik summad kajastada ilma käibemaksuta! | AO32: NB! Kõik summad kajastada ilma käibemaksuta!
A33: Elluviija/ministeerium | B33: Struktuuriüksus | C33: Partner/Asutus | D33: Teenuse vastutaja | E33: DÜAK plokk | F33: Panustab arengukava suundadesse | G33: Meetme toetatavad tegevused | H33: TERE teenus | I33: Probleem | J33: Algatuse nimi | K33: Tulemus | L33: Valdkonna prioriteet | M33: Slaid/allikas | N33: Paneeli vajadus | O33: Rahastuse allikas | P33: Summa kokku | Q33: 2023 | R33: 2024 | S33: 2025 | T33: 2026 | U33: 2027 | V33: 2023 eelarve | Y33: 2024 | AB33: 2025 | AE33: 2026 | AH33: 2027 | AK33: Kalkulatsioon ja allika põhjendus | AL33: Tegevuse jätkusuutlikkuse kulu | AM33: Kommentaar | AO33: 2023 eelarve täitmine | AR33: 2023 täitmise aruanne / sisu kirjeldus / põhjendused
B34: Valdkond, osakond, kes elluviija juures teema eest vastutab. | C34: Partner/asutus, kelle eelarvest algatusi teostatakse | D34: Vastutav teenuseomanik/ projektijuht | E34: (valida rippmenüüst) | F34: (valida rippmenüüst) | G34: (valida rippmenüüst, SF TAT käskkirja punkt 3.1. neli tegevust) | H34: Kirjutada välja TERE teenuse nimetus | I34: Täita kõikide ridade puhul | J34: Täita kõikide ridade puhul (Kui tegmist jätkusuutlikkuse tagamise tegevusega, siis see nimes välja tuua.) | K34: Täita kõikide ridade puhul. Kui mitme aastane tegevus/projekt, siis kirjutada välja vähemalt 2023. aasta tulemus ja lõpptulemus. | L34: Unikaalne prioriteet | M34: Esitatud slaidi number, või viide allikale, kus on võimalik tutvuda vajadusel sisuga, sh täpsemate kalkulatsioonidega | N34: Anda hinnang, kas on vajadus äri-, andmete-, arhitektuuri-, või muu paneeli järele | O34: (valida rippmenüüst) | V34: Investeering (15) | W34: Tööjõukulu (50) | X34: Majandamiskulu (55) | Y34: Investeering (15) | Z34: Tööjõukulu (50) | AA34: Majandamiskulu (55) | AB34: Investeering (15) | AC34: Tööjõukulu (50) | AD34: Majandamiskulu (55) | AE34: Investeering (15) | AF34: Tööjõukulu (50) | AG34: Majandamiskulu (55) | AH34: Investeering (15) | AI34: Tööjõukulu (50) | AJ34: Majandamiskulu (55) | AK34: Välja peab olema toodud tegevuste maksumuste arvutused, koos tundide hinna, tundide arvu ja tunnihinna selgitustega. Arenduste puhul lisada tunnihinna põhjendus varasemate hangetega. Inimeste palkamisel peab lähtuma Fontese palgauuringust ja viitama vastavale tööperele. | AL34: (valida rippmenüüst) | AO34: Investeering (15) | AP34: Tööjõukulu (50) | AQ34: Majandamiskulu (55) | AR34: Seireküsimused (SF tegevustele): 1. Mis sai 2023. aastal tehtud? 2. Mis jäi 2023. aastal tegemata? Miks jäi tegemata? 3. Kas tegemata jäänud tegevus jäetaksegi tegemata, või lükkub edasi järgmisse perioodi? 4. Mis oli paneeli (andme-, äri, arhitektuuri-) tagasiside ja kas paneeli nõuded on täidetud? 5. Mis ettevalmistavaid tegevusi tehti 2023. aastal 2024, või hiljem algavate algatuste/tegevuste tarvis? 6. Mida on jõutud teha 2024. aasta alguses?
A35: Eesti Linnade ja Valdade Liit (ELVL) | D35: ELVL | E35: I: Digiriik | F35: 1.2.1. Avalike teenuste juhtimise ja kasutajakesksuse juurutamine | G35: IV: muu digipöördega seotud otsene kulu | I35: KOV infosüsteemide analüüsi põhjal: KOVidel puudub enamasti ülevaade pakutavatest teenustest Ametnike ega lõppkasutajate rahulolu teenustega reeglina ei mõõdeta Arendusvajadused on enamasti suunatud automatiseerimisele ja käsitöö vähendamisele ametniku poolt Teenuste üle kontroll puudub | J35: KOV avalike teenuste kaardistamise mudel ja ühtne kasutajate rahulolu mõõtmise süsteem | K35: 2023 – projektijuhi värbamine, KOVide KOKSist tulenevate avalike teenuste esmane kaardistamine koostöös MKMi teenuste tiimiga KOV teenuste arendajatega võrgustiku baasil (7 KOVi). Taustainfo kogumine ja jätkutegevuste kavandamine KOV teenuste esmase kaardistusest tulenevalt. 2024 – jätkutegevused lähtuvalt KOV teenuste esmasest kaardistusest. Võimalikud tegevused: teenuste kaardistuse laiendamine kõikidele omavalitsustele; KOV teenuste detailsema kaardistamise ühtse mudeli väljatöötamine ja valideerimine KOVidega; ühtse kasutajate rahulolu mõõtmise süsteemi kokkuleppimine, kavandatud jätkutegevused (teenuste kaardistamine ja rahulolu süsteemi juurutamine). KOVidel tekib ülevaade oma teenustest ja protsessidest ehk nn äripoole vajadustest. | L35: 1 | M35: 29 | N35: Äripaneel | O35: SF 21-27 (taotletav raha) | P35: =SUM(Q35:U35) -> 135,210 | Q35: =SUM(V35:X35) -> 13,042 | R35: =SUM(Y35:AA35) -> 122,168 | S35: =SUM(AB35:AD35) -> 0 | T35: =SUM(AE35:AG35) -> 0 | U35: =SUM(AH35:AJ35) -> 0 | W35: =12042+1000 -> 13,042 | Z35: =48168+4000 -> 52,168 | AA35: 70,000 | AK35: Projektijuhi töötasu 1.10.2023-31.12.2024, brutopalk ca 3000 EUR/kuus. Teenuste kaardistamise ja ühtse kasutajate rahulolu mõõtmise mudeli väljatöötamine - ca 70 000 eurot. Personaliga seotud otsesed majanduskulud (arvutitöökoht, koolituskulud, sõidukulud) arvestatud ca 4000 eurot aastas. | AO35: 0 | AP35: 0 | AQ35: 0 | AR35: Alustasime ettevalmistavate tegevustega 2023.a sügisel, kuid sisuline algus oli 2024.a algusest. Digipöörde tegevuste algus venis kuna detailse tegevuskava kinnitamine toimus kavandatust hiljem ning 2023.a lõpus toimusid ELVLi volikogu otsusel muudatused ELVLi büroo struktuuris, mis hõlmasid ka IKT valdkonda. Ametikohtade ümberkorraldamise tulemusena täidab alates 01.01.2024 IKT nõunik 0,5 töökoha ulatuses teenuste projektijuhi ülesandeid. 2023.a sügisel alustati ettevalmistavaid tegevusi KOV teenuste kaardistamiseks koostöös Tartu linna ja MKMi teenuste nõunikuga. 2024.a jaanuaris tutvustati Tartu linna baasil koostatud baastabelit KOV teenuste arendajate pilootrühmale (7 KOVi) ning toimus 2 veebikohtumist tabeli sisu täpsustamiseks ja ühise seisukoha kujundamiseks. ELVLi teenuste projektijuht korraldas nelja omavalitsusega lisaks eraldi kohtumised, et täpsustada metoodikat, ootusi ja kaardistuse protsessi. Praeguseks on oma teenuste kaardistuse esitanud Rae vald ning maikuuks lisandub 3 KOVi kaardistus. Lisaks viis ELVLi teenuste projektijuht KOV pilootrühmaga läbi teenusedisaini kaardimängu, mille raames otsiti lahendusi KOV teenuste kasutajate tagasiside metoodika osas. Tegevused jätkuvad plaanipäraselt.
A36: ELVL | D36: ELVL | E36: I: Digiriik | F36: 1.2.7. Avaliku sektori digimuutuste võimendamine | G36: III: teadlikkuse tõstmine | I36: KOV infosüsteemide analüüsile tuginedes: KOVide teenustega seotud kompetentsid on madalad Ametnike ega lõppkasutajate rahulolu teenustega reeglina ei mõõdeta Kasutajakeskne mõtteviis puudub, kasutajakogemusega tegelevad vaid üksikud omavalitsused | J36: KOV teenuste omanike arenguprogramm ja KOV digikompetentside kasvatamine | K36: 2023 – koostöös MKMi oskuste tiimi ja KOV personalivõrgustikuga detailsema plaani koostamine KOV digikompetentside kasvatamisekes ning koolitusprogrammi ettevalmistus Tulemus: valmis 2024. a tegevusplaan ja koolitusprogammi lähteülesanne. 2024 – koolitusprogrammi hanke läbiviimine ja koolitused. Hinnanguliselt koolitatavate arv: 250. Tegevus jätkub 2025.a KOV-ide teenuste eest vastutajad ehk nn äripoole omanikud saavad aru teenuspõhisest juhtimisest ja selleks tehnoloogia kasutamisest, sh turvalisuse, kasutajakogemuse, andmekaitse, teenusedisaini jm põhimõtetest. Koolitustel on suur rõhk praktilistel harjutustel ja grupitööl. Loob eeldused teenuste juhtimise konsolideerimiseks KOV teenusvaldkondades. Pidev tegevus - Digiriigi Akadeemia jt riigi kesksete koolituste teavitustegevus KOVide suunal. | L36: 4 | M36: 30 | O36: SF 21-27 (taotletav raha) | P36: 100,000 | Q36: 0 | R36: 100,000 | S36: 0 | T36: 0 | U36: 0 | AA36: 100,000 | AK36: Arenguprogrammi maksumuseks on arvestatud 100 000 eurot. Hinnanguline programmi läbinute arv on 250, arvestatud on 400 EUR/inimese kohta. ELVLis on 2023. aastast tööl KOV personalivõrgustiku koordinaator, kes tegeleb personali arendamisega. Arenguprogrammi oleks võimalik ühitada riigi teenistujatele suunatud koolitus-programmidega, kuid sisu peab katma ka KOV spetsiifikat. | AO36: 0 | AP36: 0 | AQ36: 0 | AR36: Alustasime ettevalmistavate tegevustega 2023.a sügisel koostöös ELVLi personalinõunikuga. 2023.a lõpus viidi läbi veebiküsitlus KOV personalivõrgustiku seas, et saada ülevaade KOVide koolitustegevusest digivaldkonna teemadel. Lisaks küsiti personalitöötajatelt, mida üldse mõistetakse digikompetentside all. Küsitlusele vastajate hulk oli tagasihoidlik, kuid siiski saadi kinnitust, et digikompetentsid hõlmavad KOVide vaatest eelkõige tarkvara/riistvara kasutamisega seotud oskusi. ELVL korraldas veebruarikuus Pärnus KOV personalivõrgustikule kahepäevase seminari, kus fookuses olid digiteemad. Seminaril tutvustati muuhulgas Digiriigi Akadeemia koolitusi ning digikompetentside arutelupaneelis osalesid Digiriigi akadeemia projektijuht, ELVLi IKT nõunik ja Praxise analüütik. KOV teenuste omanike arenguprogrammi hankedokumentsioon ja tehniline kirjeldus on ettevalmistamisel. Plaanis on hange välja kuulutada maikuus.
A37: ELVL | D37: ELVL | E37: I: Digiriik | F37: 1.2.7. Avaliku sektori digimuutuste võimendamine | G37: I: Infotehnoloogiliste lahenduste väljatöötamine ja arendamine | I37: KOVidel puudub võimalus viia õiguspäraselt ja turvaliselt virtuaalsetel koosolekutel hääletusi. Praegune VOLIS on legacy, mis tingib teenuse ebastabiilsuse kasutajakoormuse tõusu korral, kasutusel on vananenud tehnoloogia ja kasutajadisain. Kasutajate rahulolu on madal (5,63) | J37: KOV rahvahääletuste ja koosolekute digilahendus | K37: 2023 - 2022.a valminud VOLIS2 analüüsi ülevaatus ja KOVidega koostöös minimaalsete arendatavate funktsionaalsuste kokkuleppimine -> esmalt MVP arendus ehk minimaalne funktsionaalsus. Hanke tehnilise kirjelduse ettevalmistamine. 2024 - hankedokumentatsiooni koostamine ja hanke läbiviimine arenduspartneri leidmiseks. Arenduse tulemusena valmib esimese etapina 2025. a KOV rahvahääletuste keskkonna (sh kaasavad eelarved) MVP: kasutajate haldus; hääletussüsteem (sh isikukoodi põhised hääletused ja rahvahääletused); integratsioon rahvastikuregistriga (KOV ja asustusüksuse täpsus). Valminud infosüsteemi saavad KOVid kasutusele võtta teenuslepinguga kuutasu alusel. IS majutatakse pilvelahenduses. | L37: 3 | M37: 31 | N37: Äri- ja arhitektuuri paneel läbitud | O37: SF 21-27 (taotletav raha) | P37: 304,620 | Q37: 6,930 | R37: 297,690 | S37: 0 | T37: 0 | U37: 0 | W37: 6,930 | Y37: 270,000 | Z37: =25690+2000 -> 27,690 | AK37: VOLIS2 analüüs on läbi viidud 2021-2022, plaanis on minna edasi nn light versiooniga ehk arendada MVP ehk KOV istungite ja koosolekute läbiviimise lahendus. Kalkulatsioon: projektijuht-analüütik 0,5 FTE, 1.09.2023 - 31.03.2025, brutopalk 3200 EUR/kuus. Tarkvaraarendus - 270 000. | AO37: 0 | AP37: 0 | AQ37: 0 | AR37: Aastal 2023 tegevusi ei toimunud, sest alustasime tegevustega 2024. 2024.a esimestel kuudel uuendati 2022 a valminud VOLIS2 analüüs, mis töötati ümber ning kohendati. Uuendatud analüüsi alusel on võimalik tellida arendustööd, mis kataks ära tänase VOLIS rahvahääletuste läbiviimise funktsionaalsuse. (VOLISel on kaks moodulit: - volikogu istungi läbiviimise moodul - sellele on täna turul alternatiiv tekkinud, mida üks KOV on kasutamas; - rahvahääletuse moodul (kasutatakse näiteks kaasava eelarve läbiviimiseks), seda funktsionaalsust täna turul olevad tooted ei paku. Valminud uuendatud analüüsi on arutatud ka RIA valimisteenistusega, et leida võimalikke koostöövõimalusi. RIA poolt hallatav VIS praegusel kujul ei sobi KOV rahvahääletusteks (kõrgemad turvanõuded ja erinev protsess), kuid lepiti kokku, et ELVLi tellitav infosüsteem arendatakse modulaarselt, et tulevikus oleks võimalik hääletuse moodul välja vahetada (juhul kui RIA poolt vastav lahendus tekib). Tegevused algasid hiljem, kuid jätkuvad plaanipäraselt, hetkel on ettevalmistamisel hanke dokumentatsioon. Alates 01.01.2024 täidab ELVL IT projektijuht 0,6 töökoha ulatuses uue infosüsteemi projektijuhi ülesandeid.
A38: ELVL | D38: ELVL | E38: III: Küberturvalisus | F38: 3.3. Suurem küberturvalisuse tagamise võimekus | G38: II: küberruumi hoidmine, arendamine ja juurutamine usaldusväärse ja turvalisena | I38: Kohalike omavalitsuste infoturbe võimekus on endiselt madal. KOVid üha rohkem tunnistavad, et pole võimelised seda valdkonda katma. KOVid ei mõista infoturbe olemust ja vajalikkust, seda peetakse tehniliseks mitte organisatoorseks probleemiks. ISKE dokumentatsioon on enamikul olemas, kuid seda ei järgita. KOVidel puudub keskselt kasutatav andmebaas, kuhu koguda parimaid praktikaid, juhendmaterjali jms | J38: Küberturvalisuse tagamise tugi KOVidele | K38: 2023 – infoturbe spetsialisti värbamine (osalise tööajaga), taustainfo kogumine ja tööplaani koostamine, ELVLi kui organisatsiooni ja digipöörde tegevuste turbevajaduste kaardistamine; KOVide EITS kasutusprofiili koostamisest tulenevad jätkutegevused. 2024 – E-ITS mentorite võrgustiku käivitamine (tugi KOVilt KOVile E-ITS rakendamisel). Analüüsi koostamine sobiva lahenduse leidmiseks standardlahenduste kogu platvormi loomisel; E-ITS rakendamise toe pakkumine KOVide EITS kasutusprofiilist lähtuvalt. EITS rakendamise tööriistade analüüs ja KOV vajadustest lähtuvate funktsionaalsuste kirjeldamine. Turvaline keskkond parimate praktikate ja dokumentatsiooni jagamiseks, mida kasutades on võimalik parandada infoturbe juhtimist KOV-ides. | L38: 2 | M38: 32 | N38: Ilmselt äripaneel | O38: SF 21-27 (taotletav raha) | P38: 121,226 | Q38: 14,246 | R38: 106,980 | S38: 0 | T38: 0 | U38: 0 | W38: =13246+1000 -> 14,246 | Z38: =52980+4000 -> 56,980 | AA38: 50,000 | AK38: Infoturbespetsialist töötasu (1 FTE) 1.10.2023-31.12.2024, brutopalk ca 3300 EUR/kuus. 2024. a esmalt analüüsi koostamine sobiva lahenduse leidmiseks ning dokumentatsiooni kogumiseks. Personaliga seotud otsesed majanduskulud (arvutitöökoht, koolituskulud, sõidukulud) arvestatud ca 4000 eurot aastas. | AO38: 0 | AP38: 0 | AQ38: 0 | AR38: Alustasime ettevalmistavate tegevustega 2023. a lõpus. Ametikohtade ümberkorraldamise tulemusena täidab alates 01.01.2024 IT spetsialist 0,6 töökoha ulatuses infoturbe spetsialisti ülesandeid. 2023.a detsembris käivitati E-ITS mentorlus. Selle raames sõlmiti käsunduslepingud nelja omavalitsuse töötajatega, sh E-ITS kasutusprofiili pilootprojektis osalenud omavalitsuste IT-juhid ning lisaks Jõgeva vallasekretär (kogemus RIA järelevalve läbimisega). Mentorid on praeguseks nõustanud 6 omavalitsust. Jätkatud on ka koostöös RIAga E-ITS veebiseminaride korraldamist KOV töötajatele. ELVL infoturbe spetsialist on lisaks tegelenud ELVLi kui organisatsiooni ja digipöörde tegevuste turbevajaduste kaardistamisega ning teinud eelanalüüsi standardlahenduste kogu platvormi loomiseks. Selle baasil koostatakse lähteülesanne arenduse tellimiseks. Keskkond arendatakse tõenäoliselt Sharepointi baasil ning tegemist saab olema nö KOVide ülese siseveebi lahendusega, mida esmalt saavad kasutama hakata ELVL IT-võrgustiku liikmed.
A39: ELVL | D39: ELVL | E39: I: Digiriik | F39: 1.2.2. Andmepõhine riigivalitsemine ja andmete taaskasutus | G39: IV: muu digipöördega seotud otsene kulu | I39: KOVide poolt avaandmete avaldamine on vaevaline. Kuna paljud KOVide poolt kasutatavad infosüsteemid kuuluvad eraettevõtetele peab vajalike liidestuste loomiseks läbi rääkima teenusepakkujaga. RIHAs on mitmed KOVide poolt kasutatavad infosüsteemid registreerimata, vajaliku dokumentatsiooni koostamisega ei saada hakkama. | J39: Avaandmete avaldamise ja andmehalduse tugi KOVidele | K39: 2024 - värbamine; Andmete valdkonna KOV hetkeolukorra kaardistus, sh infosüsteemide ja võimalike andmestike kaardistamine. Rihakese kasutuselevõtmise võimaluste analüüs koostöös kohalike omavalitsustega pilootprojektina. KOV parimate praktikate otsimine ja jagamine, KOVide teadlikkuse tõstmine andmete olulisusest ja kasutusvõimalustest. Osalemine MKMi-RIA andmete töögruppides, sh TSI projektis ning vajaduspõhiselt vahelüli rolli täitmine omavalitsustega kontakti saamisel. Lahenduse leidmine koostöös RIAga, kuidas oleks võimalik erinevate infosüsteemidega seotud andmeid otstarbekalt avaldada. Ülevaade KOVi infosüsteemidest RIHA vaatest (milline on seis ja võimalikud lahendused). | L39: 5 | O39: SF 21-27 (taotletav raha) | P39: 50,562 | Q39: 0 | R39: 50,562 | S39: 0 | T39: 0 | U39: 0 | Z39: =46562+4000 -> 50,562 | AK39: Andmeanalüütiku töötasu (1 FTE) 1.01.-31.12.2024, brutopalk ca 2900 EUR/kuus. Personaliga seotud otsesed majanduskulud (arvutitöökoht, koolituskulud, sõidukulud) arvestatud ca 4000 eurot aastas. | AO39: 0 | AP39: 0 | AQ39: 0 | AR39: Tegevusega alustati plaanipäraselt 2024.a. Kuna uue töötaja värbamise protsess võttis kavandatust kauem aega, asus andmete suuna projektijuht ELVLis tööle alates 18.märtsist. Tegevutega jätkatakse plaanipäraselt. ELVL IKT nõunik on osalenud riigi andmete juhtrühma töös ning ELVL on kaasatud osapool andmete kompetentsikeskuste ehk nn TSI projektis, kuhu õnnestus lisaks kaasata ka 5 omavalitsust.
A40: ELVL | D40: ELVL | E40: I: Digiriik | F40: 1.2.6. Avatud innovatsioon ja digiriigi kogukonna arendamine | G40: III: teadlikkuse tõstmine | I40: KOVide koostöö IT valdkonnas on mõnevõrra paranenud ELVL koordineerimisel. Digipöörde käigus saavad osad suunad kaetud, kuid vajalik on hoida ka laiemat vaadet KOV IT juhtimisele ja rollidele. | J40: KOV digivaldkonna kogukonna tugevdamine | K40: 2023 a kogukonna tugevdamise tegevused kaetakse ELVL baasrahastusest. 2024 - KOV IT võrgustiku regulaarsed virtuaalsed lühiseminarid. Sügisel kahepäevase seminari korraldamine. KOV IT juhtimise parimate praktikate jagamise töötoad-kogemuslood (nt IT teenuste korraldus KOVis, võimalused tugiteenuste konsolideerimiseks KOVis, teenustega seotud tarkvarade võrdlus, IT juhtimise mudelid jms). Lisaks eraldi töötoad digipöörde suundade osas (andmed, küber, teenused) Tulemus: KOVid on teadlikumad üksteise parimatest praktikatest, suurenenud on omavaheline koostöö. Suurenenud teadlikkus riigipoolsetest kesksetest lahendustest jne. | L40: 6 | O40: SF 21-27 (taotletav raha) | P40: 18,000 | Q40: 6,000 | R40: 12,000 | S40: 0 | T40: 0 | U40: 0 | X40: 6,000 | AA40: 12,000 | AK40: KOV IT juhtimise parimate praktikate jagamise töötoad-kogemuslood (nt IT teenuste korraldus KOVis, võimalused tugiteenuste konsolideerimiseks KOVis, teenustega seotud tarkvarade võrdlus, IT juhtimise mudelid jms). Arvestatud üks füüsilise kohaletulekuga seminar aastas (2023. a 1 päev, 2024. a 2-päevane). | AO40: 0 | AP40: 0 | AQ40: 0 | AR40: 2024.a alguses uuendati KOV IT-võrgustiku listi, et oleks kaetud kõik kohalikud omavalitsused. Praeguseks on listis 163 liiget. 10-11.aprillil toimusid traditsioonilised linnade ja valdade päevad, seekord oli asukohaks Tartu. Digiteemadele oli pühendatud kaks ettekannet RIA poolt: 1) riigi kesksetest lahendustest kodanikele ja omavalitsustele ning 2) infoturbe teemadel. Alustatud on ettevalmistustega 2024.a sügisel korraldatavaks 2-päevaseks seminariks. Lisaks ettekannete formaadile on plaanis läbi viia töötoad erinevate teemade lõikes: andmed ja AI; küberturvalisus; teenuste juhtimine. Ürituse korraldamisel tehakse koostööd MKMi ja RIAga.
A41: ELVL | D41: ELVL | E41: I: Digiriik | F41: 1.2.7. Avaliku sektori digimuutuste võimendamine | G41: IV: muu digipöördega seotud otsene kulu | I41: ELVL IKT KK on tegutsenud ca 5 aastat, kuid üksuse võimekus on endiselt piiratud. Seni on rohkem keskendutud KOVide kesksete platvormide jätkusuutlikkuse tagamisele ja üldisele koordineerimisele ning KOV teenuste vaade on jäänud tahaplaanile. | J41: ELVL IKT Kompetentsikeskuse baasrahastus | K41: 2023. a lõpuks on valminud uus KOV IKT arengukava. Pidevad tegevused: KOV IT juhtide võrgustiku koordineerimine, infoseminaride korraldamine, KOVide nõustamine, KOV kesksete lahenduste tootejuhtimine (Anna Teada, Omavalitsuste portaal, VOLIS); Valdkonna õigusaktide kooskõlastamine. | O41: Baaseelarve | P41: 212,000 | Q41: 150,000 | R41: 62,000 | S41: 0 | T41: 0 | U41: 0 | W41: 140,000 | X41: 10,000 | Z41: 52,000 | AA41: 10,000 | AK41: ELVL KOV IKT valdkonna baasrahastus lähtuvalt ELVL eelarvest. | AO41: 0 | AP41: 0 | AQ41: 0 | AR41: 2023. a oli plaanis uuendada KOV IKT arengukava. Kuna 2023.a lõpus algatati ka DÜAKi uuendamine, lepiti MKMiga kokku, et KOV digivaldkonna arengukava uuendatakse pärast DÜAKi uue versiooni valmimist. ELVL aitas ettevalmistada DÜAK uuendamise regionaaldigi töötuba, mis toimus 21. märtsil ning ELVL asedirektor osaleb DÜAK juhtrühmas. Pidevad tegevused: KOV IT võrgustiku koordineerimine, infovahetuse ja infoseminaride korraldamine, KOVide nõustamine, KOV kesksete lahenduste tootejuhtimine (Anna Teada, Omavalitsuste portaal, VOLIS); Valdkonna õigusaktide kooskõlastamine. 2023.a lõpus valmis uus Omavalitsuste portaali platvorm (mis baseerub Valitsusportaalil) ning I kvartali jooksul avalikustasid kõik pilootprojektis osalenud asutused (6) uued veebilehed. Praeguseks on uue platvormi kasutamisest huvitatud veel 35 KOVi, kuid hetkel ei ole võimalik seda pakkuda, kuna läbirääkimised RMITiga teenuse laiendamiseks KOVidele on takerdunud. Loodetavasti leitakse lahendus maikuus.
A42: ELVL | D42: ELVL | E42: III: Küberturvalisus | F42: 3.3. Suurem küberturvalisuse tagamise võimekus | G42: II: küberruumi hoidmine, arendamine ja juurutamine usaldusväärse ja turvalisena | I42: Kohalike omavalitsuste IKT taristu seis on aegunud. Serverite tarkvara ning riistvara on amortiseerunud. Võrgu ülesehitus on tehtud süsteemitult ning kohati on laiendamine problemaatiline. Serverite hoiustamine ei vasta infoturbe nõuetele. | J42: IKT taristu Riigipilve majutamine soodustingimustel KOVidele | K42: Vahetame välja KOV on-premise legacy serverid tänapäevaste pilvelahenduste vastu Riigipilve on kolinud osaliselt või täielikult 60% KOV-idest ning loobunud enda lokaalsetest serveritest. Tagatud tõhusam riistavara kasutus ning serverite tänapäevasem haldus. | O42: RES IKT (vaja juurde taotleda) | P42: 545,500 | Q42: 0 | R42: 545,500 | S42: 0 | T42: 0 | U42: 0 | Y42: 395,500 | Z42: 50,000 | AA42: 100,000 | AK42: Riigipilves baasressursside majutuse kulu KOV-ile on ca 600 eur kuus. KOV võrguriistvara hankimine, paigaldamine ning seadistamine - 1 KOV-i hinnanguline võrguseadmete kulu 17 500 eurot. | AO42: 0 | AP42: 0 | AQ42: 0 | AR42: Tegevus ei ole rahastust saanud.
A43: ELVL | D43: ELVL | E43: I: Digiriik | F43: 1.2.7. Avaliku sektori digimuutuste võimendamine | G43: IV: muu digipöördega seotud otsene kulu | I43: Omavalitsuste veebilehtede platvorm OVP valmib 2023.a lõpuks. Alates 2024. a saaksid seda kasutusele võtta teised KOVid, kuid esialgu võib klientide hulk olla ebapiisav halduskulu katmiseks. Kuna OVP baseerub Valitsusportaalil, on vajalik hoida KOVide osa ajakohasena kui VPs toimuvad uuendused. | J43: Omavalitsuste portaali halduskulu osaline katmine | K43: Rahastus kataks ära vahesumma, mis tekib KOVidelt saadava tulu ja portaali haldamiseks vajalike tegelike kulude vahest, juhul kui piisav hulk KOVe uut platvormi kasutusele ei võta. Lisaks pisiarenduste ja tarkvara hoolduse kulud osas, mida ei kata RMITi teenus. | O43: RES IKT (vaja juurde taotleda) | P43: 60,000 | Q43: 0 | R43: 60,000 | S43: 0 | T43: 0 | U43: 0 | AA43: 60,000 | AK43: KOV serverite migreerimine Riigipilve keskkonda 100 000 EUR. | AO43: 0 | AP43: 0 | AQ43: 0 | AR43: Kuna regionaalvaldkond liikus Rahandusministeeriumi alt Regionaal- ja Põllumajandusministeeriumisse, tuleb ELVLil taotleda tegevuse rahastust nüüd uutel alustel. Vastav summa on saanud eelneva kooskõlastuse ministeeriumi poolt.
P44: 0 | Q44: 0 | R44: 0 | S44: 0 | T44: 0 | U44: 0 | AK44: 2-aastat on KOVile Riigipilves IKT taristu majutamine tasuta. Riigipilve tasu kompenseerimine KOVidele toimuks RES vahendite arvelt mitte RITi eelarvest (baastaristu majutus oleks RESi vahenditest ja ülejäänud ressursi eest tasub KOV)
P45: 0 | Q45: 0 | R45: 0 | S45: 0 | T45: 0 | U45: 0
P46: 0 | Q46: 0 | R46: 0 | S46: 0 | T46: 0 | U46: 0
P47: 0 | Q47: 0 | R47: 0 | S47: 0 | T47: 0 | U47: 0
P48: 0 | Q48: 0 | R48: 0 | S48: 0 | T48: 0 | U48: 0
P49: 0 | Q49: 0 | R49: 0 | S49: 0 | T49: 0 | U49: 0
P50: 0 | Q50: 0 | R50: 0 | S50: 0 | T50: 0 | U50: 0
P51: 0 | Q51: 0 | R51: 0 | S51: 0 | T51: 0 | U51: 0
P52: 0 | Q52: 0 | R52: 0 | S52: 0 | T52: 0 | U52: 0
P53: 0 | Q53: 0 | R53: 0 | S53: 0 | T53: 0 | U53: 0
P54: 0 | Q54: 0 | R54: 0 | S54: 0 | T54: 0 | U54: 0
P55: 0 | Q55: 0 | R55: 0 | S55: 0 | T55: 0 | U55: 0
P56: 0 | Q56: 0 | R56: 0 | S56: 0 | T56: 0 | U56: 0
P57: 0 | Q57: 0 | R57: 0 | S57: 0 | T57: 0 | U57: 0
P58: 0 | Q58: 0 | R58: 0 | S58: 0 | T58: 0 | U58: 0
P59: 0 | Q59: 0 | R59: 0 | S59: 0 | T59: 0 | U59: 0
P60: 0 | Q60: 0 | R60: 0 | S60: 0 | T60: 0 | U60: 0
P61: 0 | Q61: 0 | R61: 0 | S61: 0 | T61: 0 | U61: 0
P62: 0 | Q62: 0 | R62: 0 | S62: 0 | T62: 0 | U62: 0
P63: 0 | Q63: 0 | R63: 0 | S63: 0 | T63: 0 | U63: 0
P64: 0 | Q64: 0 | R64: 0 | S64: 0 | T64: 0 | U64: 0
P65: 0 | Q65: 0 | R65: 0 | S65: 0 | T65: 0 | U65: 0
P66: 0 | Q66: 0 | R66: 0 | S66: 0 | T66: 0 | U66: 0
P67: =SUM(Q67:U67) -> 0 | Q67: 0 | R67: =SUM(Y67:AA67) -> 0 | S67: =SUM(AB67:AD67) -> 0 | T67: =SUM(AE67:AG67) -> 0 | U67: =SUM(AH67:AJ67) -> 0
P68: 0 | Q68: 0 | R68: 0 | S68: 0 | T68: 0 | U68: 0
P69: 0 | Q69: 0 | R69: 0 | S69: 0 | T69: 0 | U69: 0
P70: 0 | Q70: 0 | R70: 0 | S70: 0 | T70: 0 | U70: 0
P71: 0 | Q71: 0 | R71: 0 | S71: 0 | T71: 0 | U71: 0
P72: 0 | Q72: 0 | R72: 0 | S72: 0 | T72: 0 | U72: 0
P73: 0 | Q73: 0 | R73: 0 | S73: 0 | T73: 0 | U73: 0
P74: 0 | Q74: 0 | R74: 0 | S74: 0 | T74: 0 | U74: 0
P75: 0 | Q75: 0 | R75: 0 | S75: 0 | T75: 0 | U75: 0
P76: 0 | Q76: 0 | R76: 0 | S76: 0 | T76: 0 | U76: 0
P77: 0 | Q77: 0 | R77: 0 | S77: 0 | T77: 0 | U77: 0
P78: 0 | Q78: 0 | R78: 0 | S78: 0 | T78: 0 | U78: 0
P79: 0 | Q79: 0 | R79: 0 | S79: 0 | T79: 0 | U79: 0
P80: 0 | Q80: 0 | R80: 0 | S80: 0 | T80: 0 | U80: 0
P81: 0 | Q81: 0 | R81: 0 | S81: 0 | T81: 0 | U81: 0
P82: 0 | Q82: 0 | R82: 0 | S82: 0 | T82: 0 | U82: 0
P83: 0 | Q83: 0 | R83: 0 | S83: 0 | T83: 0 | U83: 0
P84: 0 | Q84: 0 | R84: 0 | S84: 0 | T84: 0 | U84: 0
P85: 0 | Q85: 0 | R85: 0 | S85: 0 | T85: 0 | U85: 0
P86: 0 | Q86: 0 | R86: 0 | S86: 0 | T86: 0 | U86: 0
P87: 0 | Q87: 0 | R87: 0 | S87: 0 | T87: 0 | U87: 0
P88: 0 | Q88: 0 | R88: 0 | S88: 0 | T88: 0 | U88: 0
P89: 0 | Q89: 0 | R89: 0 | S89: 0 | T89: 0 | U89: 0
P90: 0 | Q90: 0 | R90: 0 | S90: 0 | T90: 0 | U90: 0
P91: 0 | Q91: 0 | R91: 0 | S91: 0 | T91: 0 | U91: 0
P92: 0 | Q92: 0 | R92: 0 | S92: 0 | T92: 0 | U92: 0
P93: 0 | Q93: 0 | R93: 0 | S93: 0 | T93: 0 | U93: 0
P94: 0 | Q94: 0 | R94: 0 | S94: 0 | T94: 0 | U94: 0
E97: I: Digiriik | F97: 1.1.1. Üleminek sündmuspõhistele ja proaktiivsetele teenustele | G97: 1. Infotehnoloogiliste lahenduste väljatöötamine ja arendamine | O97: Baaseelarve | AL97: 1. Tegevus sisaldab jätkusuutlikkuse kulusid ja need on samal real välja toodud.
E98: II: Ühenduvus | F98: 1.1.2. Krativäeline riik | G98: 2. küberruumi hoidmine, arendamine ja juurutamine usaldusväärse ja turvalisena | O98: Muu rahastus | AL98: 2. Tegevus on jätkusuutlikkuse kulu
E99: III: Küberturvalisus | F99: 1.1.3. Inimkeskne Digiriik | G99: 3. teadlikkuse tõstmine | O99: RES IKT (vaja juurde taotleda) | AL99: 3. Tegevus, mis vajab jätkusuutlikkuse kulusid ja need on eraldi real välja toodud
F100: 1.1.4. Roheline digiriik | G100: 4. muu digipöördega seotud otsene kulu | O100: Reserv (SR) | AL100: 4. Tegevus, mis vajab jätkusuutlikkuse kulusid, aga neid pole välja arvutatud ja eraldi real välja toodud
F101: 1.2.1. Avalike teenuste juhtimise ja kasutajakesksuse juurutamine | O101: RRF | AL101: 5. Tegevus, mis ei vaja jätkusuutlikkuse kulusid.
F102: 1.2.2. Andmepõhine riigivalitsemine ja andmete taaskasutus | O102: SF 14-20 (töös olev projekt)
F103: 1.2.3. Tulevikukindlad digiriigi platvormid | O103: SF 21-27 (taotletav raha)
F104: 1.2.4. Keskselt osutatud IT-alusteenused
F105: 1.2.5. Uute lähenemisviiside pidev katsetamine
F106: 1.2.6. Avatud innovatsioon ja digiriigi kogukonna arendamine
F107: 1.2.7. Avaliku sektori digimuutuste võimendamine
F108: 1.2.8. Sihitud väliskoostöö
F109: 2.1. Ajakohane ja ettevaatav õigusruum
F110: 2.2. Juurdepääsuvõrkude väljaarendamine
F111: 2.3. 5G- ja 6G-baastaristu arendamine
F112: 2.4. Uudsete sisu- ja äriteenuste arendus
F113: 3.1. Ajakohane küberturvalisuse riiklik korraldus
F114: 3.2. Suundumiste, riskide ja mõjude analüüsivõime
F115: 3.3. Suurem küberturvalisuse tagamise võimekus

Sheet KK_lisa (hidden)
A3: Eesti Linnade ja Valdade Liidu valdkondlik digipööre | B3: Kokku | C3: 2023 | D3: 2024 | E3: 2025 | F3: Panus Eesti 2035 näitajatesse: Sooline võrdõiguslikkus, hoolivus ja koostöömeelsus, ligipääsevatus, KOV rahulolu teenusega | G3: Seos DA 2030 arengukavaga -peab olema välja toodud DA 2030 rahulolu mõõdik ning metoodika, kuidas parim kasutajakogemus saavutatakse. | H3: Seos vastava valdkonna arengukavaga | I3: Tegevuse seos rakenduskava poliitikaeesmärk 1 „Nutikam Eesti“ erieesmärgi „digitaliseerimisest kasu toomine kodanike, ettevõtjate, teadusasutuste ja avaliku sektori asutuste jaoks" kasusaajaga | J3: Tegevuse põhjendatus - tegevus on seotud TAT eesmärkide ja tulemuste saavutamisega ning on läbinud koordineerija nõustamise kontroll-lehtede alusel | K3: Tegevuse kuluefektiivsus -tegevuse hinnastamisel on arvestatud parimaid praktikaid ja üldist tava (nt hangete raamlepingu hindasid, personalil Fontese uuringuid jms) | L3: Tegevuse elluviija suutlikkus tegevust ellu viia - arvestatud on elluviija või partneri varasemat kogemusi ja võimekust
A4: Elluviija: Eesti Linnade ja Valdade Liit
A5: 1. Infotehnoloogiliste lahenduste väljatöötamine ja arendamine | B5: =SUM(C5:E5) -> 519,636 | C5: =Tegevuskava!D23 -> 0 | D5: =Tegevuskava!E23 -> 153,286 | E5: =Tegevuskava!F23 -> 366,350 | F5: x | G5: x | H5: x | I5: x | J5: x | K5: x | L5: x
A6: 2. Küberruumi hoidmine, arendamine ja juurutamine usaldusväärse ja turvalisena | B6: =SUM(C6:E6) -> 174,952 | C6: =Tegevuskava!D24 -> 0 | D6: =Tegevuskava!E24 -> 117,976 | E6: =Tegevuskava!F24 -> 56,976 | F6: x | G6: x | H6: x | I6: x | J6: x | K6: x | L6: x
A7: 3. Teadlikkuse tõstmine (teadlikkuse tõstmine punktides 3.1.1., 3.1.2. ja 3.1.4. nimetatud tegevuste osas, sealhulgas elluviija ja partnerite teadlikkuse tõstmine ) | B7: 151,280 | C7: =Tegevuskava!D25 -> 0 | D7: =Tegevuskava!E25 -> 75,640 | E7: =Tegevuskava!F25 -> 75,640 | F7: x | G7: x | H7: x | I7: x | J7: x | K7: x | L7: x
A8: 4. Muu digipöördega seotud otsene kulu (valdkondliku digipöörde elluviimisega seotud tegevused) | B8: 314,242 | C8: =Tegevuskava!D26 -> 0 | D8: =Tegevuskava!E26 -> 106,342 | E8: =Tegevuskava!F26 -> 207,900 | F8: x | G8: x | H8: x | I8: x | J8: x | K8: x | L8: x
A9: EELARVE KOKKU | B9: =SUM(B5:B8) -> 1,160,110 | C9: =SUM(C5:C8) -> 0 | D9: =SUM(D5:D8) -> 453,244 | E9: =SUM(E5:E8) -> 706,866
A11: Meetmete nimekirja tulemusnäitaja: | B11: Uute ja uuendatud avalike digiteenuste, -toodete ja -protsesside kasutajad. Mõõtühik: lõppkasutajaid aastas.
A12: Periood | B12: 2023 algtase | C12: 2024 sihttase | D12: 2025 sihttase | E12: 2026 sihttase | F12: 2027 sihttase | G12: 2028 sihttase | H12: 2029 sihttase | I12: 2030 lõpptase
A13: Väärtus | B13: ='kuni 2025 detsember tegevuskava'!B19 -> 0 | C13: ='kuni 2025 detsember tegevuskava'!C19 -> 0 | D13: ='kuni 2025 detsember tegevuskava'!D19 -> 15,000 | E13: ='kuni 2025 detsember tegevuskava'!E19 -> 0 | F13: ='kuni 2025 detsember tegevuskava'!F19 -> 0 | G13: ='kuni 2025 detsember tegevuskava'!G19 -> 0 | H13: ='kuni 2025 detsember tegevuskava'!H19 -> 0 | I13: ='kuni 2025 detsember tegevuskava'!I19 -> 250,000
A14: Meetmete nimekirja väljundnäitaja: | B14: Uued või uuendatud digiteenused, -tooted ja -protsessid. Mõõtühik: arv
A15: Periood | B15: 2023 algtase | C15: 2024 sihttase | D15: 2025 sihttase | E15: 2026 sihttase | F15: 2027 sihttase | G15: 2028 sihttase | H15: 2029 sihttase | I15: 2030 lõpptase
A16: Väärtus | B16: ='kuni 2025 detsember tegevuskava'!B22 -> 0 | C16: ='kuni 2025 detsember tegevuskava'!C22 -> 0 | D16: ='kuni 2025 detsember tegevuskava'!D22 -> 1 | E16: ='kuni 2025 detsember tegevuskava'!E22 -> 0 | F16: ='kuni 2025 detsember tegevuskava'!F22 -> 0 | G16: ='kuni 2025 detsember tegevuskava'!G22 -> 0 | H16: ='kuni 2025 detsember tegevuskava'!H22 -> 0 | I16: ='kuni 2025 detsember tegevuskava'!I22 -> 5
A17: Meetmete nimekirja väljundnäitaja: | B17: Avaliku sektori asutused, keda toetatakse digiteenuste, -toodete ja -protsesside väljatöötamiseks. Mõõtühik: Avaliku sektori asutused.
A18: Periood | B18: 2023 algtase | C18: 2024 sihttase | D18: 2025 sihttase | E18: 2026 sihttase | F18: 2027 sihttase | G18: 2028 sihttase | H18: 2029 sihttase | I18: 2030 lõpptase
A19: Väärtus | B19: ='kuni 2025 detsember tegevuskava'!B25 -> 0 | C19: ='kuni 2025 detsember tegevuskava'!C25 -> 1 | D19: ='kuni 2025 detsember tegevuskava'!D25 -> 1 | E19: ='kuni 2025 detsember tegevuskava'!E25 -> 0 | F19: ='kuni 2025 detsember tegevuskava'!F25 -> 0 | G19: ='kuni 2025 detsember tegevuskava'!G25 -> 0 | H19: ='kuni 2025 detsember tegevuskava'!H25 -> 0 | I19: ='kuni 2025 detsember tegevuskava'!I25 -> 1
A20: Projektispetsiifiline näitaja (Eesti digiühiskonna arengukava 2030 (DA 2030) mõõdik): | B20: Avalike digiteenustega rahulolu. Mõõtühik: %
A21: Periood | B21: 2023 algtase | C21: 2024 sihttase | D21: 2025 sihttase | E21: 2026 sihttase | F21: 2027 sihttase | G21: 2028 sihttase | H21: 2029 sihttase | I21: 2030 lõpptase
A22: Väärtus | B22: ='kuni 2025 detsember tegevuskava'!B28&"%" -> 0% | C22: ='kuni 2025 detsember tegevuskava'!C28&"%" -> 0% | D22: ='kuni 2025 detsember tegevuskava'!D28&"%" -> 0% | E22: ='kuni 2025 detsember tegevuskava'!E28&"%" -> % | F22: ='kuni 2025 detsember tegevuskava'!F28&"%" -> % | G22: ='kuni 2025 detsember tegevuskava'!G28&"%" -> % | H22: ='kuni 2025 detsember tegevuskava'!H28&"%" -> % | I22: ='kuni 2025 detsember tegevuskava'!I28&"%" -> 90%

Sheet Tegevuskava
B2: Tulenevalt majandus- ja infotehnoloogiaministri 25. augusti 2023. a käskkirjast „Toetuse andmise tingimused valdkondlike digipöörete toetamiseks“ allkirjastan/kinnitanEesti Linnade ja Valdade Liidu digipöörde tegevuskava.
B4: Valdkondliku digipöörde tegevuskava – Eesti Linnade ja Valdade Liit
B6: Digipöörde eesmärk:
B7: KOVide pakutavad avalikud teenused on juhitud ja hallatud lähtudes lõppkasutajast ehk KOV elanikust. Välja on arendatud kaasaegne keskkond elanike kaasamiseks KOV otsustusprotsessidesse (nt kaasav eelarve, külavanema valimised). KOVide pakutavad teenused on riigi teenustega ühtses kasutajateekonnas lähtuvalt inimese/ettevõtte vajadustest.
B9: Digipöörde tegevuskava eesmärk:
B10: Aastaks 2025 on käivitatud esmased tegevused ja välja töötatud konkreetne tegevusplaan digipöörde suundade lõikes, et liikuda KOVides mõtteviisi muutuse poole (avalike teenuste kasutajakesksus, andmepõhisus, kübeturvalisuse tagamine).
B12: Eesti Linnade ja Valdade Liit valdkondliku digipöörde 2023-2024 maksumus ilma käibemaksuta:
C13: Kokku | D13: 2023 | E13: 2024 | F13: 2025
B14: Kokku | C14: =SUM(D14:F14) -> 1,981,987 | D14: =SUM(D15:D17) -> 164,933 | E14: =SUM(E15:E17) -> 550,028 | F14: 1,267,026
B15: Olemasolevad vahendid | C15: =SUM(D15:F15) -> 316,957 | D15: =SUM('kuni 2025 detsember tegevuskava'!X112:Z112+'kuni 2025 detsember tegevuskava'!X115:Z115+'kuni 2025 detsember tegevuskava'!X118:Z118+'kuni 2025 detsember tegevuskava'!X121:Z121) -> 164,933 | E15: =SUM('kuni 2025 detsember tegevuskava'!AA112:AC112+'kuni 2025 detsember tegevuskava'!AA115:AC115+'kuni 2025 detsember tegevuskava'!AA118:AC118+'kuni 2025 detsember tegevuskava'!AA121:AC121) -> 90,024 | F15: =SUM('kuni 2025 detsember tegevuskava'!AD112:AF112+'kuni 2025 detsember tegevuskava'!AD115:AF115+'kuni 2025 detsember tegevuskava'!AD118:AF118+'kuni 2025 detsember tegevuskava'!AD121:AF121) -> 62,000
B16: SF 2021-2027 | C16: 1,019,530 | D16: =SUM('kuni 2025 detsember tegevuskava'!X97:Z97+'kuni 2025 detsember tegevuskava'!X100:Z100+'kuni 2025 detsember tegevuskava'!X103:Z103+'kuni 2025 detsember tegevuskava'!X106:Z106) -> 0 | E16: =SUM('kuni 2025 detsember tegevuskava'!AA97:AC97+'kuni 2025 detsember tegevuskava'!AA100:AC100+'kuni 2025 detsember tegevuskava'!AA103:AC103+'kuni 2025 detsember tegevuskava'!AA106:AC106) -> 400,004 | F16: =SUM('kuni 2025 detsember tegevuskava'!AD97:AF97+'kuni 2025 detsember tegevuskava'!AD100:AF100+'kuni 2025 detsember tegevuskava'!AD103:AF103+'kuni 2025 detsember tegevuskava'!AD106:AF106) -> 619,526
B17: RES 2024-2027 | C17: 645,500 | D17: =SUM('kuni 2025 detsember tegevuskava'!X127:Z127+'kuni 2025 detsember tegevuskava'!X130:Z130+'kuni 2025 detsember tegevuskava'!X133:Z133+'kuni 2025 detsember tegevuskava'!X136:Z136) -> 0 | E17: =SUM('kuni 2025 detsember tegevuskava'!AA127:AC127+'kuni 2025 detsember tegevuskava'!AA130:AC130+'kuni 2025 detsember tegevuskava'!AA133:AC133+'kuni 2025 detsember tegevuskava'!AA136:AC136) -> 60,000 | F17: =SUM('kuni 2025 detsember tegevuskava'!AD127:AF127+'kuni 2025 detsember tegevuskava'!AD130:AF130+'kuni 2025 detsember tegevuskava'!AD133:AF133+'kuni 2025 detsember tegevuskava'!AD136:AF136) -> 585,500
B20: Eesti Linnade ja Valdade Liit valdkondliku digipöörde 2023-2025 SF 2021-2027 toetuse summa koos käibemaksuga
C21: Kokku | D21: 2023 | E21: 2024 | F21: 2025
B22: SF 2021-2027 | C22: =SUM(D22:F22) -> 1,160,110 | D22: =SUM(D23:D26) -> 0 | E22: =SUM(E23:E26) -> 453,244 | F22: 706,866
B23: 1. Infotehnoloogiliste lahenduste väljatöötamine ja arendamine | C23: =SUM(D23:F23) -> 519,636 | D23: =SUM('kuni 2025 detsember tegevuskava'!X98:Z98) -> 0 | E23: =SUM('kuni 2025 detsember tegevuskava'!AA98:AC98) -> 153,286 | F23: =SUM('kuni 2025 detsember tegevuskava'!AD98:AF98) -> 366,350
B24: 2. Küberruumi hoidmine, arendamine ja juurutamine usaldusväärse ja turvalisena | C24: =SUM(D24:F24) -> 174,952 | D24: =SUM('kuni 2025 detsember tegevuskava'!X101:Z101) -> 0 | E24: =SUM('kuni 2025 detsember tegevuskava'!AA101:AC101) -> 117,976 | F24: =SUM('kuni 2025 detsember tegevuskava'!AD101:AF101) -> 56,976
B25: 3. Teadlikkuse tõstmine (teadlikkuse tõstmine punktides 3.1.1., 3.1.2. ja 3.1.4. nimetatud tegevuste osas, sealhulgas elluviija ja partnerite teadlikkuse tõstmine ) | C25: 151,280 | D25: =SUM('kuni 2025 detsember tegevuskava'!X104:Z104) -> 0 | E25: =SUM('kuni 2025 detsember tegevuskava'!AA104:AC104) -> 75,640 | F25: =SUM('kuni 2025 detsember tegevuskava'!AD104:AF104) -> 75,640
B26: 4. Muu digipöördega seotud otsene kulu (valdkondliku digipöörde elluviimisega seotud tegevused) | C26: 314,242 | D26: =SUM('kuni 2025 detsember tegevuskava'!X107:Z107) -> 0 | E26: =SUM('kuni 2025 detsember tegevuskava'!AA107:AC107) -> 106,342 | F26: =SUM('kuni 2025 detsember tegevuskava'!AD107:AF107) -> 207,900
B29: Elluviija / partner | C29: Probleem | D29: Tegevuse (algatuse) nimi | E29: Tulemus | F29: Rahastuse allikas / meetme tegevus (SF) | I29: Summa kokku | K29: 2023 kokku | M29: 2024 kokku | O29: 2025 kokku
I30: (EA konto) | K30: (EA konto) | M30: (EA konto) | O30: (EA konto)
B31: KOKKU | I31: =SUM(I32:I34) -> 1,981,987 | K31: =SUM(K32:K34) -> 164,933 | M31: =SUM(M32:M34) -> 550,028 | O31: =SUM(O32:O34) -> 1,267,026
I32: =SUM(I49+I82) -> 665,500 | J32: ="(15)" -> (15) | K32: =SUM(K49+K82) -> 0 | L32: ="(15)" -> (15) | M32: =SUM(M49+M82) -> 100,000 | N32: ="(15)" -> (15) | O32: =SUM(O49+O82) -> 565,500 | P32: ="(15)" -> (15)
I33: =SUM(I36+I50+I56+I63+I75+I83+I96+I103) -> 706,701 | J33: ="(50)" -> (50) | K33: =SUM(K36+K50+K56+K63+K75+K83+K96+K103) -> 152,647 | L33: ="(50)" -> (50) | M33: =SUM(M36+M50+M56+M63+M75+M83+M96+M103) -> 229,528 | N33: ="(50)" -> (50) | O33: =SUM(O36+O50+O56+O63+O75+O83+O96+O103) -> 324,526 | P33: ="(50)" -> (50)
I34: =SUM(I37+I44+I57+I64+I70+I76+I84+I91+I97+I104) -> 609,786 | J34: ="(55)" -> (55) | K34: =SUM(K37+K44+K57+K64+K70+K76+K84+K91+K97+K104) -> 12,286 | L34: ="(55)" -> (55) | M34: =SUM(M37+M44+M57+M64+M70+M76+M84+M91+M97+M104) -> 220,500 | N34: ="(55)" -> (55) | O34: =SUM(O37+O44+O57+O64+O70+O76+O84+O91+O97+O104) -> 377,000 | P34: ="(55)" -> (55)
B35: ELVL/ | C35: ='kuni 2025 detsember tegevuskava'!I35 -> KOV infosüsteemide analüüsi põhjal: KOVidel puudub enamasti ülevaade pakutavatest teenustest Ametnike ega lõppkasutajate rahulolu teenustega reeglina ei mõõdeta Arendusvajadused on enamasti suunatud automatiseerimisele ja käsitöö vähendamisele ametniku poolt Teenuste üle kontroll puudub | D35: ='kuni 2025 detsember tegevuskava'!J35 -> KOV avalike teenuste kaardistamise mudel ja ühtne kasutajate rahulolu mõõtmise süsteem | E35: ='kuni 2025 detsember tegevuskava'!K35 -> 2024 – projektijuhi värbamine, KOVide KOKSist tulenevate avalike teenuste esmane kaardistamine koostöös MKMi teenuste tiimiga KOV teenuste arendajatega pilootrühma baasil (5 KOVi). Jätkutegevuste kavandamine KOV teenuste esmase kaardistusest tulenevalt. Võimalikud tegevused: teenuste kaardistuse laiendamine kõikidele omavalitsustele; KOV teenuste standardi väljatöötamine ja valideerimine KOVidega; ühtse kasutajate rahulolu mõõtmise mudeli ja süsteemi analüüs 2025 - analüüsi tulemusena kasutajate rahulolu süsteemi arendus ja juurutamine. Lõpptulemus: KOVidel tekib ülevaade oma teenustest ja protsessidest ehk nn äripoole vajadustest; tervikpilt KOV (e-)teenustest ja kattuvusest riigiasutuste teenustega; KOV teenuste seotus sündmusteenustega; kasutajate rahulolu mõõtmine ja parendused on juurutatud teenuse osutamise protsessi. | F35: ='kuni 2025 detsember tegevuskava'!P35&"/" -> SF 21-27 (taotletav raha)/ | G35: =_xlfn.IFS('kuni 2025 detsember tegevuskava'!G35='kuni 2025 detsember tegevuskava'!$G$97,1,'kuni 2025 detsember tegevuskava'!G35='kuni 2025 detsember tegevuskava'!$G$98,2,'kuni 2025 detsember tegevuskava'!G35='kuni 2025 detsember tegevuskava'!$G$99,3,'kuni 2025 detsember tegevuskava'!G35='kuni 2025 detsember tegevuskava'!$G$100,4) -> 4 | H35: =_xlfn.IFS(OR('kuni 2025 detsember tegevuskava'!P35='kuni 2025 detsember tegevuskava'!$P$97,'kuni 2025 detsember tegevuskava'!P35='kuni 2025 detsember tegevuskava'!$P$99,'kuni 2025 detsember tegevuskava'!P35='kuni 2025 detsember tegevuskava'!$P$100,'kuni 2025 detsember tegevuskava'!P35='kuni 2025 detsember tegevuskava'!$P$101),1,'kuni 2025 detsember tegevuskava'!P35='kuni 2025 detsember tegevuskava'!$P$102,2,'kuni 2025 detsember tegevuskava'!P35='kuni 2025 detsember tegevuskava'!$P$103,2,'kuni 2025 detsember tegevuskava'!P35='kuni 2025 detsember tegevuskava'!$P$98,3) -> 2 | I35: =SUM(I36:I37) -> 172,809 | K35: =SUM(K36:K37) -> 0 | M35: =SUM(M36:M37) -> 57,609 | O35: =SUM(O36:O37) -> 115,200
I36: =SUM(K36+M36+O36) -> 82,809 | J36: ="(50)" -> (50) | K36: ='kuni 2025 detsember tegevuskava'!Y35 -> 0 | L36: ="(50)" -> (50) | M36: ='kuni 2025 detsember tegevuskava'!AB35 -> 27,609 | N36: ="(50)" -> (50) | O36: ='kuni 2025 detsember tegevuskava'!AE35 -> 55,200 | P36: ="(50)" -> (50)
I37: =SUM(K37+M37+O37) -> 90,000 | J37: ="(55)" -> (55) | K37: ='kuni 2025 detsember tegevuskava'!Z35 -> 0 | L37: ="(55)" -> (55) | M37: ='kuni 2025 detsember tegevuskava'!AC35 -> 30,000 | N37: ="(55)" -> (55) | O37: ='kuni 2025 detsember tegevuskava'!AF35 -> 60,000 | P37: ="(55)" -> (55)
I38: Summa koos käibemaksuga:
I39: =SUM(I40:I41) -> 192,609 | K39: =SUM(K40:K41) -> 0 | M39: =SUM(M40:M41) -> 64,209 | O39: =SUM(O40:O41) -> 128,400
I40: =SUM(K40+M40+O40) -> 82,809 | J40: ="(50)" -> (50) | K40: =K36 -> 0 | L40: ="(50)" -> (50) | M40: =M36 -> 27,609 | N40: ="(50)" -> (50) | O40: =O36 -> 55,200 | P40: ="(50)" -> (50)
I41: =SUM(K41+M41+O41) -> 109,800 | J41: ="(55)" -> (55) | K41: =SUM(K37*1.2) -> 0 | L41: ="(55)" -> (55) | M41: =SUM(M37*1.22) -> 36,600 | N41: ="(55)" -> (55) | O41: =SUM(O37*1.22) -> 73,200 | P41: ="(55)" -> (55)
B43: ELVL/ | C43: ='kuni 2025 detsember tegevuskava'!I36 -> KOV infosüsteemide analüüsile tuginedes: KOVide teenustega seotud kompetentsid on madalad Ametnike ega lõppkasutajate rahulolu teenustega reeglina ei mõõdeta Kasutajakeskne mõtteviis puudub, kasutajakogemusega tegelevad vaid üksikud omavalitsused | D43: ='kuni 2025 detsember tegevuskava'!J36 -> KOV teenuste omanike arenguprogramm ja KOV digikompetentside kasvatamine | E43: ='kuni 2025 detsember tegevuskava'!K36 -> 2024 – koostöös MKMi oskuste tiimi ja KOV personalivõrgustikuga detailsema plaani koostamine KOV digikompetentside kasvatamisekes, koolitusprogrammi hanke läbiviimine. Koolituse korraldamine 2024.a sügisel esmalt pilootgrupiga. Hinnanguliselt koolitatavate arv kokku: 250. Tegevus jätkub 2025.a KOV-ide teenuste eest vastutajad ehk nn äripoole omanikud saavad aru teenuspõhisest juhtimisest ja selleks tehnoloogia kasutamisest, sh turvalisuse, kasutajakogemuse, andmekaitse, teenusedisaini jm põhimõtetest. Koolitustel on suur rõhk praktilistel harjutustel ja grupitööl. Loob eeldused teenuste juhtimise konsolideerimiseks KOV teenusvaldkondades. Pidev tegevus - Digiriigi Akadeemia jt riigi kesksete koolituste teavitustegevus KOVide suunal. | F43: ='kuni 2025 detsember tegevuskava'!P36&"/" -> SF 21-27 (taotletav raha)/ | G43: =_xlfn.IFS('kuni 2025 detsember tegevuskava'!G36='kuni 2025 detsember tegevuskava'!$G$97,1,'kuni 2025 detsember tegevuskava'!G36='kuni 2025 detsember tegevuskava'!$G$98,2,'kuni 2025 detsember tegevuskava'!G36='kuni 2025 detsember tegevuskava'!$G$99,3,'kuni 2025 detsember tegevuskava'!G36='kuni 2025 detsember tegevuskava'!$G$100,4) -> 3 | H43: =_xlfn.IFS(OR('kuni 2025 detsember tegevuskava'!P36='kuni 2025 detsember tegevuskava'!$P$97,'kuni 2025 detsember tegevuskava'!P36='kuni 2025 detsember tegevuskava'!$P$99,'kuni 2025 detsember tegevuskava'!P36='kuni 2025 detsember tegevuskava'!$P$100,'kuni 2025 detsember tegevuskava'!P36='kuni 2025 detsember tegevuskava'!$P$101),1,'kuni 2025 detsember tegevuskava'!P36='kuni 2025 detsember tegevuskava'!$P$102,2,'kuni 2025 detsember tegevuskava'!P36='kuni 2025 detsember tegevuskava'!$P$103,2,'kuni 2025 detsember tegevuskava'!P36='kuni 2025 detsember tegevuskava'!$P$98,3) -> 2 | I43: =SUM(I44:I44) -> 100,000 | K43: =SUM(K44:K44) -> 0 | M43: =SUM(M44:M44) -> 50,000 | O43: =SUM(O44:O44) -> 50,000
I44: =SUM(K44+M44+O44) -> 100,000 | J44: ="(55)" -> (55) | K44: ='kuni 2025 detsember tegevuskava'!Z36 -> 0 | L44: ="(55)" -> (55) | M44: ='kuni 2025 detsember tegevuskava'!AC36 -> 50,000 | N44: ="(55)" -> (55) | O44: ='kuni 2025 detsember tegevuskava'!AF36 -> 50,000 | P44: ="(55)" -> (55)
I45: Summa koos käibemaksuga:
I46: =SUM(I47:I47) -> 122,000 | K46: =SUM(K47:K47) -> 0 | M46: =SUM(M47:M47) -> 61,000 | O46: =SUM(O47:O47) -> 61,000
I47: =SUM(K47+M47+O47) -> 122,000 | J47: ="(55)" -> (55) | K47: =SUM(K44*1.2) -> 0 | L47: ="(55)" -> (55) | M47: =SUM(M44*1.22) -> 61,000 | N47: ="(55)" -> (55) | O47: =SUM(O44*1.22) -> 61,000 | P47: ="(55)" -> (55)
B48: ='kuni 2025 detsember tegevuskava'!A37&"/"&'kuni 2025 detsember tegevuskava'!C37 -> ELVL/ | C48: ='kuni 2025 detsember tegevuskava'!I37 -> KOVidel puudub võimalus viia õiguspäraselt ja turvaliselt virtuaalsetel koosolekutel hääletusi. Praegune VOLIS on legacy, mis tingib teenuse ebastabiilsuse kasutajakoormuse tõusu korral, kasutusel on vananenud tehnoloogia ja kasutajadisain. Kasutajate rahulolu on madal (5,63) | D48: ='kuni 2025 detsember tegevuskava'!J37 -> KOV rahvahääletuste ja koosolekute digilahendus | E48: ='kuni 2025 detsember tegevuskava'!K37 -> 2024 - 2022.a valminud VOLIS2 analüüsi ülevaatus ja KOVidega koostöös minimaalsete arendatavate funktsionaalsuste kokkuleppimine -> esmalt MVP arendus ehk minimaalne funktsionaalsus. Hankedokumentatsiooni koostamine ja hanke läbiviimine arenduspartneri leidmiseks. Arenduse tulemusena valmib esimese etapina 2025. a KOV rahvahääletuste keskkonna (sh kaasavad eelarved) MVP: kasutajate haldus; hääletussüsteem (sh isikukoodi põhised hääletused ja rahvahääletused); integratsioon rahvastikuregistriga (KOV ja asustusüksuse täpsus). Valminud infosüsteemi saavad KOVid kasutusele võtta teenuslepinguga kuutasu alusel. IS majutatakse pilvelahenduses. | F48: ='kuni 2025 detsember tegevuskava'!P37&"/" -> SF 21-27 (taotletav raha)/ | G48: =_xlfn.IFS('kuni 2025 detsember tegevuskava'!G37='kuni 2025 detsember tegevuskava'!$G$97,1,'kuni 2025 detsember tegevuskava'!G37='kuni 2025 detsember tegevuskava'!$G$98,2,'kuni 2025 detsember tegevuskava'!G37='kuni 2025 detsember tegevuskava'!$G$99,3,'kuni 2025 detsember tegevuskava'!G37='kuni 2025 detsember tegevuskava'!$G$100,4) -> 1 | H48: =_xlfn.IFS(OR('kuni 2025 detsember tegevuskava'!P37='kuni 2025 detsember tegevuskava'!$P$97,'kuni 2025 detsember tegevuskava'!P37='kuni 2025 detsember tegevuskava'!$P$99,'kuni 2025 detsember tegevuskava'!P37='kuni 2025 detsember tegevuskava'!$P$100,'kuni 2025 detsember tegevuskava'!P37='kuni 2025 detsember tegevuskava'!$P$101),1,'kuni 2025 detsember tegevuskava'!P37='kuni 2025 detsember tegevuskava'!$P$102,2,'kuni 2025 detsember tegevuskava'!P37='kuni 2025 detsember tegevuskava'!$P$103,2,'kuni 2025 detsember tegevuskava'!P37='kuni 2025 detsember tegevuskava'!$P$98,3) -> 2 | I48: =SUM(I49:I50) -> 334,136 | K48: =SUM(K49:K50) -> 0 | M48: =SUM(M49:M50) -> 131,286 | O48: =SUM(O49:O50) -> 202,850
I49: =SUM(K49+M49+O49) -> 270,000 | J49: ="(15)" -> (15) | K49: ='kuni 2025 detsember tegevuskava'!X37 -> 0 | L49: ="(15)" -> (15) | M49: ='kuni 2025 detsember tegevuskava'!AA37 -> 100,000 | N49: ="(15)" -> (15) | O49: ='kuni 2025 detsember tegevuskava'!AD37 -> 170,000 | P49: ="(15)" -> (15)
I50: =SUM(K50+M50+O50) -> 64,136 | J50: ="(50)" -> (50) | K50: ='kuni 2025 detsember tegevuskava'!Y37 -> 0 | L50: ="(50)" -> (50) | M50: ='kuni 2025 detsember tegevuskava'!AB37 -> 31,286 | N50: ="(50)" -> (50) | O50: ='kuni 2025 detsember tegevuskava'!AE37 -> 32,850 | P50: ="(50)" -> (50)
I51: Summa koos käibemaksuga:
I52: =SUM(I53:I54) -> 393,536 | K52: =SUM(K53:K54) -> 0 | M52: =SUM(M53:M54) -> 153,286 | O52: =SUM(O53:O54) -> 240,250
I53: =SUM(K53+M53+O53) -> 329,400 | J53: ="(15)" -> (15) | K53: =SUM(K49*1.2) -> 0 | L53: ="(15)" -> (15) | M53: =SUM(M49*1.22) -> 122,000 | N53: ="(15)" -> (15) | O53: =SUM(O49*1.22) -> 207,400 | P53: ="(15)" -> (15)
I54: =SUM(K54+M54+O54) -> 64,136 | J54: ="(50)" -> (50) | K54: =K50 -> 0 | L54: ="(50)" -> (50) | M54: =M50 -> 31,286 | N54: ="(50)" -> (50) | O54: =O50 -> 32,850 | P54: ="(50)" -> (50)
B55: ='kuni 2025 detsember tegevuskava'!A38&"/"&'kuni 2025 detsember tegevuskava'!C38 -> ELVL/ | C55: ='kuni 2025 detsember tegevuskava'!I38 -> Kohalike omavalitsuste infoturbe võimekus on endiselt madal. KOVid üha rohkem tunnistavad, et pole võimelised seda valdkonda katma. KOVid ei mõista infoturbe olemust ja vajalikkust, seda peetakse tehniliseks mitte organisatoorseks probleemiks. ISKE dokumentatsioon on enamikul olemas, kuid seda ei järgita. KOVidel puudub keskselt kasutatav andmebaas, kuhu koguda parimaid praktikaid, juhendmaterjali jms | D55: ='kuni 2025 detsember tegevuskava'!J38 -> Küberturvalisuse tagamise tugi KOVidele | E55: ='kuni 2025 detsember tegevuskava'!K38 -> 2024 – infoturbe spetsialisti värbamine (osalise tööajaga), taustainfo kogumine ja tööplaani koostamine, ELVLi kui organisatsiooni ja digipöörde tegevuste turbevajaduste kaardistamine; KOVide EITS kasutusprofiili koostamisest tulenevad jätkutegevused. E-ITS mentorite võrgustiku käivitamine (tugi KOVilt KOVile E-ITS rakendamisel). Lähteülesande koostamine sobiva lahenduse leidmiseks standardlahenduste kogu platvormi loomiseks ja arenduse tellimine. 2025 - E-ITS rakendamise toe jätkamine (mentorlus, veebiseminarid koostöös RIAga). Parimate praktikate, juhendite ja dokumentatsiooni jagamise keskkonna käivitamine (nn KOV ülene siseveeb). Eesmärk on tõsta teadlikkust ja parandada infoturbe juhtimist KOV-ides. | F55: ='kuni 2025 detsember tegevuskava'!P38&"/" -> SF 21-27 (taotletav raha)/ | G55: =_xlfn.IFS('kuni 2025 detsember tegevuskava'!G38='kuni 2025 detsember tegevuskava'!$G$97,1,'kuni 2025 detsember tegevuskava'!G38='kuni 2025 detsember tegevuskava'!$G$98,2,'kuni 2025 detsember tegevuskava'!G38='kuni 2025 detsember tegevuskava'!$G$99,3,'kuni 2025 detsember tegevuskava'!G38='kuni 2025 detsember tegevuskava'!$G$100,4) -> 2 | H55: =_xlfn.IFS(OR('kuni 2025 detsember tegevuskava'!P38='kuni 2025 detsember tegevuskava'!$P$97,'kuni 2025 detsember tegevuskava'!P38='kuni 2025 detsember tegevuskava'!$P$99,'kuni 2025 detsember tegevuskava'!P38='kuni 2025 detsember tegevuskava'!$P$100,'kuni 2025 detsember tegevuskava'!P38='kuni 2025 detsember tegevuskava'!$P$101),1,'kuni 2025 detsember tegevuskava'!P38='kuni 2025 detsember tegevuskava'!$P$102,2,'kuni 2025 detsember tegevuskava'!P38='kuni 2025 detsember tegevuskava'!$P$103,2,'kuni 2025 detsember tegevuskava'!P38='kuni 2025 detsember tegevuskava'!$P$98,3) -> 2 | I55: =SUM(I56:I57) -> 163,952 | K55: =SUM(K56:K57) -> 0 | M55: =SUM(M56:M57) -> 106,976 | O55: =SUM(O56:O57) -> 56,976
I56: =SUM(K56+M56+O56) -> 113,952 | J56: ="(50)" -> (50) | K56: ='kuni 2025 detsember tegevuskava'!Y38 -> 0 | L56: ="(50)" -> (50) | M56: ='kuni 2025 detsember tegevuskava'!AB38 -> 56,976 | N56: ="(50)" -> (50) | O56: ='kuni 2025 detsember tegevuskava'!AE38 -> 56,976 | P56: ="(50)" -> (50)
I57: 50,000 | J57: ="(55)" -> (55) | K57: ='kuni 2025 detsember tegevuskava'!Z38 -> 0 | L57: ="(55)" -> (55) | M57: ='kuni 2025 detsember tegevuskava'!AC38 -> 50,000 | N57: ="(55)" -> (55) | O57: ='kuni 2025 detsember tegevuskava'!AF38 -> 0 | P57: ="(55)" -> (55)
I58: Summa koos käibemaksuga:
I59: =SUM(I60:I61) -> 174,952 | K59: =SUM(K60:K61) -> 0 | M59: =SUM(M60:M61) -> 117,976 | O59: =SUM(O60:O61) -> 56,976
I60: =SUM(K60+M60+O60) -> 113,952 | J60: ="(50)" -> (50) | K60: =K56 -> 0 | L60: ="(50)" -> (50) | M60: =M56 -> 56,976 | N60: ="(50)" -> (50) | O60: =O56 -> 56,976 | P60: ="(50)" -> (50)
I61: 61,000 | J61: ="(55)" -> (55) | K61: =SUM(K57*1.2) -> 0 | L61: ="(55)" -> (55) | M61: =SUM(M57*1.22) -> 61,000 | N61: ="(55)" -> (55) | O61: =SUM(O57*1.22) -> 0 | P61: ="(55)" -> (55)
B62: ='kuni 2025 detsember tegevuskava'!A39&"/"&'kuni 2025 detsember tegevuskava'!C39 -> ELVL/ | C62: ='kuni 2025 detsember tegevuskava'!I39 -> KOVide poolt avaandmete avaldamine on vaevaline. Kuna paljud KOVide poolt kasutatavad infosüsteemid kuuluvad eraettevõtetele peab vajalike liidestuste loomiseks läbi rääkima teenusepakkujaga. RIHAs on mitmed KOVide poolt kasutatavad infosüsteemid registreerimata, vajaliku dokumentatsiooni koostamisega ei saada hakkama. | D62: ='kuni 2025 detsember tegevuskava'!J39 -> Avaandmete avaldamise, andmehalduse ja AI tugi KOVidele | E62: ='kuni 2025 detsember tegevuskava'!K39 -> 2024 - värbamine; andmete valdkonna KOV hetkeolukorra kaardistus, sh infosüsteemide ja võimalike andmestike kaardistamine. 2024-2025: Osalemine MKMi-RIA andmete töögruppides, sh TSI projektis ning vajaduspõhiselt vahelüli rolli täitmine omavalitsustega kontakti saamisel. Avaandmete avaldamise toe pakkumine KOVidele: avaldatavate andmestike kokkuleppimine, abi andmete ettevalmistamisel ja avaldamisel, automatiseerimise lahenduste analüüs. Andmehalduse raamistiku "tõlkimine" ehk kohandamine KOVide jaoks, sh Rihakese kasutusvõimaluste analüüs. KOV teadlikkuse tõstmine andmete väärtusest ja võimalustest: parimate praktikate otsimine ja jagamine, praktiliste juhendite koostamine. ELVLi poolt Bürokrati piloteerimine KOV üldandmete osas. | F62: ='kuni 2025 detsember tegevuskava'!P39&"/" -> SF 21-27 (taotletav raha)/ | G62: =_xlfn.IFS('kuni 2025 detsember tegevuskava'!G39='kuni 2025 detsember tegevuskava'!$G$97,1,'kuni 2025 detsember tegevuskava'!G39='kuni 2025 detsember tegevuskava'!$G$98,2,'kuni 2025 detsember tegevuskava'!G39='kuni 2025 detsember tegevuskava'!$G$99,3,'kuni 2025 detsember tegevuskava'!G39='kuni 2025 detsember tegevuskava'!$G$100,4) -> 4 | H62: =_xlfn.IFS(OR('kuni 2025 detsember tegevuskava'!P39='kuni 2025 detsember tegevuskava'!$P$97,'kuni 2025 detsember tegevuskava'!P39='kuni 2025 detsember tegevuskava'!$P$99,'kuni 2025 detsember tegevuskava'!P39='kuni 2025 detsember tegevuskava'!$P$100,'kuni 2025 detsember tegevuskava'!P39='kuni 2025 detsember tegevuskava'!$P$101),1,'kuni 2025 detsember tegevuskava'!P39='kuni 2025 detsember tegevuskava'!$P$102,2,'kuni 2025 detsember tegevuskava'!P39='kuni 2025 detsember tegevuskava'!$P$103,2,'kuni 2025 detsember tegevuskava'!P39='kuni 2025 detsember tegevuskava'!$P$98,3) -> 2 | I62: =SUM(I63:I64) -> 116,133 | K62: =SUM(K63:K64) -> 0 | M62: =SUM(M63:M64) -> 42,133 | O62: =SUM(O63:O64) -> 74,000
I63: =SUM(K63+M63+O63) -> 91,133 | J63: ="(50)" -> (50) | K63: ='kuni 2025 detsember tegevuskava'!Y39 -> 0 | L63: ="(50)" -> (50) | M63: ='kuni 2025 detsember tegevuskava'!AB39 -> 42,133 | N63: ="(50)" -> (50) | O63: ='kuni 2025 detsember tegevuskava'!AE39 -> 49,000 | P63: ="(50)" -> (50)
I64: =SUM(K64+M64+O64) -> 25,000 | J64: ="(55)" -> (55) | K64: ='kuni 2025 detsember tegevuskava'!Z39 -> 0 | L64: ="(55)" -> (55) | M64: ='kuni 2025 detsember tegevuskava'!AC39 -> 0 | N64: ="(55)" -> (55) | O64: ='kuni 2025 detsember tegevuskava'!AF39 -> 25,000 | P64: ="(55)" -> (55)
I65: Summa koos käibemaksuga:
I66: =SUM(I67:I68) -> 121,633 | K66: =SUM(K67:K68) -> 0 | M66: =SUM(M67:M68) -> 42,133 | O66: =SUM(O67:O68) -> 79,500
I67: =SUM(K67+M67+O67) -> 91,133 | J67: ="(50)" -> (50) | K67: =K63 -> 0 | L67: ="(50)" -> (50) | M67: =M63 -> 42,133 | N67: ="(50)" -> (50) | O67: =O63 -> 49,000 | P67: ="(50)" -> (50)
I68: =SUM(K68+M68+O68) -> 30,500 | J68: ="(55)" -> (55) | K68: =SUM(K64*1.2) -> 0 | L68: ="(55)" -> (55) | M68: =SUM(M64*1.22) -> 0 | N68: ="(55)" -> (55) | O68: =SUM(O64*1.22) -> 30,500 | P68: ="(55)" -> (55)
B69: ='kuni 2025 detsember tegevuskava'!A40&"/"&'kuni 2025 detsember tegevuskava'!C40 -> ELVL/ | C69: ='kuni 2025 detsember tegevuskava'!I40 -> KOVide koostöö IT valdkonnas on mõnevõrra paranenud ELVL koordineerimisel. Digipöörde käigus saavad osad suunad kaetud, kuid vajalik on hoida ka laiemat vaadet KOV IT juhtimisele ja rollidele. | D69: ='kuni 2025 detsember tegevuskava'!J40 -> KOV digivaldkonna kogukonna tugevdamine | E69: ='kuni 2025 detsember tegevuskava'!K40 -> KOV IT võrgustiku regulaarsed virtuaalsed lühiseminarid. Sügisel kahepäevase seminari korraldamine. KOV IT juhtimise parimate praktikate jagamise töötoad-kogemuslood (nt IT teenuste korraldus KOVis, võimalused tugiteenuste konsolideerimiseks KOVis, teenustega seotud tarkvarade võrdlus, IT juhtimise mudelid jms). Lisaks eraldi töötoad digipöörde suundade osas (andmed, küber, teenused) Tulemus: KOVid on teadlikumad üksteise parimatest praktikatest, suurenenud on omavaheline koostöö. Suurenenud teadlikkus riigipoolsetest kesksetest lahendustest jne. | F69: ='kuni 2025 detsember tegevuskava'!P40&"/" -> SF 21-27 (taotletav raha)/ | G69: =_xlfn.IFS('kuni 2025 detsember tegevuskava'!G40='kuni 2025 detsember tegevuskava'!$G$97,1,'kuni 2025 detsember tegevuskava'!G40='kuni 2025 detsember tegevuskava'!$G$98,2,'kuni 2025 detsember tegevuskava'!G40='kuni 2025 detsember tegevuskava'!$G$99,3,'kuni 2025 detsember tegevuskava'!G40='kuni 2025 detsember tegevuskava'!$G$100,4) -> 3 | H69: =_xlfn.IFS(OR('kuni 2025 detsember tegevuskava'!P40='kuni 2025 detsember tegevuskava'!$P$97,'kuni 2025 detsember tegevuskava'!P40='kuni 2025 detsember tegevuskava'!$P$99,'kuni 2025 detsember tegevuskava'!P40='kuni 2025 detsember tegevuskava'!$P$100,'kuni 2025 detsember tegevuskava'!P40='kuni 2025 detsember tegevuskava'!$P$101),1,'kuni 2025 detsember tegevuskava'!P40='kuni 2025 detsember tegevuskava'!$P$102,2,'kuni 2025 detsember tegevuskava'!P40='kuni 2025 detsember tegevuskava'!$P$103,2,'kuni 2025 detsember tegevuskava'!P40='kuni 2025 detsember tegevuskava'!$P$98,3) -> 2 | I69: =SUM(I70:I70) -> 24,000 | K69: =SUM(K70:K70) -> 0 | M69: =SUM(M70:M70) -> 12,000 | O69: =SUM(O70:O70) -> 12,000
I70: =SUM(K70+M70+O70) -> 24,000 | J70: ="(55)" -> (55) | K70: ='kuni 2025 detsember tegevuskava'!Z40 -> 0 | L70: ="(55)" -> (55) | M70: ='kuni 2025 detsember tegevuskava'!AC40 -> 12,000 | N70: ="(55)" -> (55) | O70: ='kuni 2025 detsember tegevuskava'!AF40 -> 12,000 | P70: ="(55)" -> (55)
I71: Summa koos käibemaksuga:
I72: =SUM(I73:I73) -> 29,280 | K72: =SUM(K73:K73) -> 0 | M72: =SUM(M73:M73) -> 14,640 | O72: =SUM(O73:O73) -> 14,640
I73: =SUM(K73+M73+O73) -> 29,280 | J73: ="(55)" -> (55) | K73: =SUM(K70*1.2) -> 0 | L73: ="(55)" -> (55) | M73: =SUM(M70*1.22) -> 14,640 | N73: ="(55)" -> (55) | O73: =SUM(O70*1.22) -> 14,640 | P73: ="(55)" -> (55)
B74: ='kuni 2025 detsember tegevuskava'!A41&"/"&'kuni 2025 detsember tegevuskava'!C41 -> ELVL/ | C74: ='kuni 2025 detsember tegevuskava'!I41 -> ELVL IKT KK on tegutsenud ca 5 aastat, kuid üksuse võimekus on endiselt piiratud. Seni on rohkem keskendutud KOVide kesksete platvormide jätkusuutlikkuse tagamisele ja üldisele koordineerimisele ning KOV teenuste vaade on jäänud tahaplaanile. | D74: ='kuni 2025 detsember tegevuskava'!J41 -> ELVL IKT Kompetentsikeskuse baasrahastus | E74: ='kuni 2025 detsember tegevuskava'!K41 -> Pidevad tegevused: KOV IT juhtide võrgustiku koordineerimine ja infovahetus, KOVide nõustamine; KOV kesksete lahenduste tootejuhtimine (Anna Teada, Omavalitsuste portaal, VOLIS); Valdkonna õigusaktide kooskõlastamine; digivaldkonna arengudokumentide-tegevuskavade koostamises osalemine ja KOV huvide esindamine. | F74: ='kuni 2025 detsember tegevuskava'!P41&"/" -> Baaseelarve/ | G74: =_xlfn.IFS('kuni 2025 detsember tegevuskava'!G41='kuni 2025 detsember tegevuskava'!$G$97,1,'kuni 2025 detsember tegevuskava'!G41='kuni 2025 detsember tegevuskava'!$G$98,2,'kuni 2025 detsember tegevuskava'!G41='kuni 2025 detsember tegevuskava'!$G$99,3,'kuni 2025 detsember tegevuskava'!G41='kuni 2025 detsember tegevuskava'!$G$100,4) -> 4 | H74: =_xlfn.IFS(OR('kuni 2025 detsember tegevuskava'!P41='kuni 2025 detsember tegevuskava'!$P$97,'kuni 2025 detsember tegevuskava'!P41='kuni 2025 detsember tegevuskava'!$P$99,'kuni 2025 detsember tegevuskava'!P41='kuni 2025 detsember tegevuskava'!$P$100,'kuni 2025 detsember tegevuskava'!P41='kuni 2025 detsember tegevuskava'!$P$101),1,'kuni 2025 detsember tegevuskava'!P41='kuni 2025 detsember tegevuskava'!$P$102,2,'kuni 2025 detsember tegevuskava'!P41='kuni 2025 detsember tegevuskava'!$P$103,2,'kuni 2025 detsember tegevuskava'!P41='kuni 2025 detsember tegevuskava'!$P$98,3) -> 1 | I74: =SUM(I75:I76) -> 274,000 | K74: =SUM(K75:K76) -> 150,000 | M74: =SUM(M75:M76) -> 62,000 | O74: =SUM(O75:O76) -> 62,000
I75: =SUM(K75+M75+O75) -> 244,000 | J75: ="(50)" -> (50) | K75: ='kuni 2025 detsember tegevuskava'!Y41 -> 140,000 | L75: ="(50)" -> (50) | M75: ='kuni 2025 detsember tegevuskava'!AB41 -> 52,000 | N75: ="(50)" -> (50) | O75: ='kuni 2025 detsember tegevuskava'!AE41 -> 52,000 | P75: ="(50)" -> (50)
I76: =SUM(K76+M76+O76) -> 30,000 | J76: ="(55)" -> (55) | K76: ='kuni 2025 detsember tegevuskava'!Z41 -> 10,000 | L76: ="(55)" -> (55) | M76: ='kuni 2025 detsember tegevuskava'!AC41 -> 10,000 | N76: ="(55)" -> (55) | O76: ='kuni 2025 detsember tegevuskava'!AF41 -> 10,000 | P76: ="(55)" -> (55)
I77: Summa koos käibemaksuga:
I78: =SUM(I79:I80) -> 280,400 | K78: =SUM(K79:K80) -> 152,000 | M78: =SUM(M79:M80) -> 64,200 | O78: =SUM(O79:O80) -> 64,200
I79: =SUM(K79+M79+O79) -> 244,000 | J79: ="(50)" -> (50) | K79: =K75 -> 140,000 | L79: ="(50)" -> (50) | M79: =M75 -> 52,000 | N79: ="(50)" -> (50) | O79: =O75 -> 52,000 | P79: ="(50)" -> (50)
I80: =SUM(K80+M80+O80) -> 36,400 | J80: ="(55)" -> (55) | K80: =SUM(K76*1.2) -> 12,000 | L80: ="(55)" -> (55) | M80: =SUM(M76*1.22) -> 12,200 | N80: ="(55)" -> (55) | O80: =SUM(O76*1.22) -> 12,200 | P80: ="(55)" -> (55)
B81: ='kuni 2025 detsember tegevuskava'!A42&"/"&'kuni 2025 detsember tegevuskava'!C42 -> ELVL/ | C81: ='kuni 2025 detsember tegevuskava'!I42 -> Kohalike omavalitsuste IKT taristu seis on aegunud. Serverite tarkvara ning riistvara on amortiseerunud. Võrgu ülesehitus on tehtud süsteemitult ning kohati on laiendamine problemaatiline. Serverite hoiustamine ei vasta infoturbe nõuetele. | D81: ='kuni 2025 detsember tegevuskava'!J42 -> IKT taristu Riigipilve majutamine soodustingimustel KOVidele | E81: ='kuni 2025 detsember tegevuskava'!K42 -> Vahetame välja KOV on-premise legacy serverid tänapäevaste pilvelahenduste vastu Riigipilve on kolinud osaliselt või täielikult 60% KOV-idest ning loobunud enda lokaalsetest serveritest. Tagatud tõhusam riistavara kasutus ning serverite tänapäevasem haldus. | F81: ='kuni 2025 detsember tegevuskava'!P42&"/" -> RES IKT (vaja juurde taotleda)/ | G81: =_xlfn.IFS('kuni 2025 detsember tegevuskava'!G42='kuni 2025 detsember tegevuskava'!$G$97,1,'kuni 2025 detsember tegevuskava'!G42='kuni 2025 detsember tegevuskava'!$G$98,2,'kuni 2025 detsember tegevuskava'!G42='kuni 2025 detsember tegevuskava'!$G$99,3,'kuni 2025 detsember tegevuskava'!G42='kuni 2025 detsember tegevuskava'!$G$100,4) -> 2 | H81: =_xlfn.IFS(OR('kuni 2025 detsember tegevuskava'!P42='kuni 2025 detsember tegevuskava'!$P$97,'kuni 2025 detsember tegevuskava'!P42='kuni 2025 detsember tegevuskava'!$P$99,'kuni 2025 detsember tegevuskava'!P42='kuni 2025 detsember tegevuskava'!$P$100,'kuni 2025 detsember tegevuskava'!P42='kuni 2025 detsember tegevuskava'!$P$101),1,'kuni 2025 detsember tegevuskava'!P42='kuni 2025 detsember tegevuskava'!$P$102,2,'kuni 2025 detsember tegevuskava'!P42='kuni 2025 detsember tegevuskava'!$P$103,2,'kuni 2025 detsember tegevuskava'!P42='kuni 2025 detsember tegevuskava'!$P$98,3) -> 1 | I81: =SUM(I82:I84) -> 545,500 | K81: =SUM(K82:K84) -> 0 | M81: =SUM(M82:M84) -> 0 | O81: =SUM(O82:O84) -> 545,500
I82: =SUM(K82+M82+O82) -> 395,500 | J82: ="(15)" -> (15) | K82: ='kuni 2025 detsember tegevuskava'!X42 -> 0 | L82: ="(15)" -> (15) | M82: ='kuni 2025 detsember tegevuskava'!AA42 -> 0 | N82: ="(15)" -> (15) | O82: ='kuni 2025 detsember tegevuskava'!AD42 -> 395,500 | P82: ="(15)" -> (15)
I83: =SUM(K83+M83+O83) -> 50,000 | J83: ="(50)" -> (50) | K83: ='kuni 2025 detsember tegevuskava'!Y42 -> 0 | L83: ="(50)" -> (50) | M83: ='kuni 2025 detsember tegevuskava'!AB42 -> 0 | N83: ="(50)" -> (50) | O83: ='kuni 2025 detsember tegevuskava'!AE42 -> 50,000 | P83: ="(50)" -> (50)
I84: =SUM(K84+M84+O84) -> 100,000 | J84: ="(55)" -> (55) | K84: ='kuni 2025 detsember tegevuskava'!Z42 -> 0 | L84: ="(55)" -> (55) | M84: ='kuni 2025 detsember tegevuskava'!AC42 -> 0 | N84: ="(55)" -> (55) | O84: ='kuni 2025 detsember tegevuskava'!AF42 -> 100,000 | P84: ="(55)" -> (55)
I85: Summa koos käibemaksuga:
I86: =SUM(I87:I89) -> 654,510 | K86: =SUM(K87:K89) -> 0 | M86: =SUM(M87:M89) -> 0 | O86: =SUM(O87:O89) -> 654,510
I87: =SUM(K87+M87+O87) -> 482,510 | J87: ="(15)" -> (15) | K87: =SUM(K82*1.2) -> 0 | L87: ="(15)" -> (15) | M87: =SUM(M82*1.22) -> 0 | N87: ="(15)" -> (15) | O87: =SUM(O82*1.22) -> 482,510 | P87: ="(15)" -> (15)
I88: =SUM(K88+M88+O88) -> 50,000 | J88: ="(50)" -> (50) | K88: =K83 -> 0 | L88: ="(50)" -> (50) | M88: =M83 -> 0 | N88: ="(50)" -> (50) | O88: =O83 -> 50,000 | P88: ="(50)" -> (50)
I89: =SUM(K89+M89+O89) -> 122,000 | J89: ="(55)" -> (55) | K89: =SUM(K84*1.2) -> 0 | L89: ="(55)" -> (55) | M89: =SUM(M84*1.22) -> 0 | N89: ="(55)" -> (55) | O89: =SUM(O84*1.22) -> 122,000 | P89: ="(55)" -> (55)
B90: ='kuni 2025 detsember tegevuskava'!A43&"/"&'kuni 2025 detsember tegevuskava'!C43 -> ELVL/ | C90: ='kuni 2025 detsember tegevuskava'!I43 -> Omavalitsuste veebilehtede platvorm OVP valmib 2023.a lõpuks. Alates 2024. a saaksid seda kasutusele võtta teised KOVid, kuid esialgu võib klientide hulk olla ebapiisav halduskulu katmiseks. Kuna OVP baseerub Valitsusportaalil, on vajalik hoida KOVide osa ajakohasena kui VPs toimuvad uuendused. | D90: ='kuni 2025 detsember tegevuskava'!J43 -> Omavalitsuste portaali ja Anna Teada väikearendused | E90: ='kuni 2025 detsember tegevuskava'!K43 -> Omavalitsuste portaali ja Anna Teada väikearenduste ja tarkvara hoolduse kulud. Lisaks vahesumma, mis tekib KOVidelt saadava tulu ja portaali haldamiseks vajalike tegelike kulude vahest, juhul kui piisav hulk KOVe uut platvormi kasutusele ei võta. | F90: ='kuni 2025 detsember tegevuskava'!P43&"/" -> RES IKT (vaja juurde taotleda)/ | G90: =_xlfn.IFS('kuni 2025 detsember tegevuskava'!G43='kuni 2025 detsember tegevuskava'!$G$97,1,'kuni 2025 detsember tegevuskava'!G43='kuni 2025 detsember tegevuskava'!$G$98,2,'kuni 2025 detsember tegevuskava'!G43='kuni 2025 detsember tegevuskava'!$G$99,3,'kuni 2025 detsember tegevuskava'!G43='kuni 2025 detsember tegevuskava'!$G$100,4) -> 4 | H90: =_xlfn.IFS(OR('kuni 2025 detsember tegevuskava'!P43='kuni 2025 detsember tegevuskava'!$P$97,'kuni 2025 detsember tegevuskava'!P43='kuni 2025 detsember tegevuskava'!$P$99,'kuni 2025 detsember tegevuskava'!P43='kuni 2025 detsember tegevuskava'!$P$100,'kuni 2025 detsember tegevuskava'!P43='kuni 2025 detsember tegevuskava'!$P$101),1,'kuni 2025 detsember tegevuskava'!P43='kuni 2025 detsember tegevuskava'!$P$102,2,'kuni 2025 detsember tegevuskava'!P43='kuni 2025 detsember tegevuskava'!$P$103,2,'kuni 2025 detsember tegevuskava'!P43='kuni 2025 detsember tegevuskava'!$P$98,3) -> 1 | I90: =SUM(I91:I91) -> 100,000 | K90: =SUM(K91:K91) -> 0 | M90: =SUM(M91:M91) -> 60,000 | O90: =SUM(O91:O91) -> 40,000
I91: =SUM(K91+M91+O91) -> 100,000 | J91: ="(55)" -> (55) | K91: ='kuni 2025 detsember tegevuskava'!Z43 -> 0 | L91: ="(55)" -> (55) | M91: ='kuni 2025 detsember tegevuskava'!AC43 -> 60,000 | N91: ="(55)" -> (55) | O91: ='kuni 2025 detsember tegevuskava'!AF43 -> 40,000 | P91: ="(55)" -> (55)
I92: Summa koos käibemaksuga:
I93: =SUM(I94:I94) -> 122,000 | K93: =SUM(K94:K94) -> 0 | M93: =SUM(M94:M94) -> 73,200 | O93: =SUM(O94:O94) -> 48,800
I94: =SUM(K94+M94+O94) -> 122,000 | J94: ="(55)" -> (55) | K94: =SUM(K91*1.2) -> 0 | L94: ="(55)" -> (55) | M94: =SUM(M91*1.22) -> 73,200 | N94: ="(55)" -> (55) | O94: =SUM(O91*1.22) -> 48,800 | P94: ="(55)" -> (55)
B95: ='kuni 2025 detsember tegevuskava'!A44&"/"&'kuni 2025 detsember tegevuskava'!C44 -> ELVL/ | C95: ='kuni 2025 detsember tegevuskava'!I44 -> KOV on osa avalikust sektorist ning elanik ei tee tihti vahet riigi ja KOV teenustel. Hetkel ei ole KOV teenuseid liidestatud eesti.ee või riikliku mobiili-rakendusega. Elanik peab KOV teenuste kohta infot otsima KOV veebilehelt, KOV iseteenindusest vms allikast. | D95: ='kuni 2025 detsember tegevuskava'!J44 -> KOV teenuste keskse platvormi eelanalüüs | E95: ='kuni 2025 detsember tegevuskava'!K44 -> 2024: eelanalüüsi hanke ettevalmistamine; 2025: KOV teenuste keskse platvormi eelanalüüsi läbiviimine ja jätkutegevuste kavandamine lähtuvalt analüüsist. Tegevuse elluviimisel koostöö RIA personaalse riigi osakonnaga. | F95: ='kuni 2025 detsember tegevuskava'!P44&"/" -> SF 21-27 (taotletav raha)/ | G95: =_xlfn.IFS('kuni 2025 detsember tegevuskava'!G44='kuni 2025 detsember tegevuskava'!$G$97,1,'kuni 2025 detsember tegevuskava'!G44='kuni 2025 detsember tegevuskava'!$G$98,2,'kuni 2025 detsember tegevuskava'!G44='kuni 2025 detsember tegevuskava'!$G$99,3,'kuni 2025 detsember tegevuskava'!G44='kuni 2025 detsember tegevuskava'!$G$100,4) -> 1 | H95: =_xlfn.IFS(OR('kuni 2025 detsember tegevuskava'!P44='kuni 2025 detsember tegevuskava'!$P$97,'kuni 2025 detsember tegevuskava'!P44='kuni 2025 detsember tegevuskava'!$P$99,'kuni 2025 detsember tegevuskava'!P44='kuni 2025 detsember tegevuskava'!$P$100,'kuni 2025 detsember tegevuskava'!P44='kuni 2025 detsember tegevuskava'!$P$101),1,'kuni 2025 detsember tegevuskava'!P44='kuni 2025 detsember tegevuskava'!$P$102,2,'kuni 2025 detsember tegevuskava'!P44='kuni 2025 detsember tegevuskava'!$P$103,2,'kuni 2025 detsember tegevuskava'!P44='kuni 2025 detsember tegevuskava'!$P$98,3) -> 2 | I95: =SUM(I96:I97) -> 108,500 | K95: =SUM(K96:K97) -> 0 | M95: =SUM(M96:M97) -> 0 | O95: =SUM(O96:O97) -> 108,500
I96: =SUM(K96+M96+O96) -> 28,500 | J96: ="(50)" -> (50) | K96: ='kuni 2025 detsember tegevuskava'!Y44 -> 0 | L96: ="(50)" -> (50) | M96: ='kuni 2025 detsember tegevuskava'!AB44 -> 0 | N96: ="(50)" -> (50) | O96: ='kuni 2025 detsember tegevuskava'!AE44 -> 28,500 | P96: ="(50)" -> (50)
I97: =SUM(K97+M97+O97) -> 80,000 | J97: ="(55)" -> (55) | K97: ='kuni 2025 detsember tegevuskava'!Z44 -> 0 | L97: ="(55)" -> (55) | M97: ='kuni 2025 detsember tegevuskava'!AC44 -> 0 | N97: ="(55)" -> (55) | O97: ='kuni 2025 detsember tegevuskava'!AF44 -> 80,000 | P97: ="(55)" -> (55)
I98: Summa koos käibemaksuga:
I99: =SUM(I100:I101) -> 126,100 | K99: =SUM(K100:K101) -> 0 | M99: =SUM(M100:M101) -> 0 | O99: =SUM(O100:O101) -> 126,100
I100: =SUM(K100+M100+O100) -> 28,500 | J100: ="(50)" -> (50) | K100: =K96 -> 0 | L100: ="(50)" -> (50) | M100: =M96 -> 0 | N100: ="(50)" -> (50) | O100: =O96 -> 28,500 | P100: ="(50)" -> (50)
I101: =SUM(K101+M101+O101) -> 97,600 | J101: ="(55)" -> (55) | K101: =SUM(K97*1.2) -> 0 | L101: ="(55)" -> (55) | M101: =SUM(M97*1.22) -> 0 | N101: ="(55)" -> (55) | O101: =SUM(O97*1.22) -> 97,600 | P101: ="(55)" -> (55)
B102: ='kuni 2025 detsember tegevuskava'!A45&"/"&'kuni 2025 detsember tegevuskava'!C45 -> ELVL/ | C102: ='kuni 2025 detsember tegevuskava'!I45 -> 2023.a on teostatud I etapp ehk infoteenus eesti.ee. Hetkel ei ole võimalik eesti.ee kaudu KOV teenuseid taotleda. | D102: ='kuni 2025 detsember tegevuskava'!J45 -> Lähedase surma sündmusteenuse juhtimine | E102: ='kuni 2025 detsember tegevuskava'!K45 -> 2024: Pilootprojekt kolme KOV-iga matusetoetuse taotluse info kuvamiseks eesti.ee-s, andmevahetuse analüüs ja prototüüp. Pärismispildi analüüsi ettevalmistus | F102: ='kuni 2025 detsember tegevuskava'!P45&"/" -> RRF/ | G102: =_xlfn.IFS('kuni 2025 detsember tegevuskava'!G45='kuni 2025 detsember tegevuskava'!$G$97,1,'kuni 2025 detsember tegevuskava'!G45='kuni 2025 detsember tegevuskava'!$G$98,2,'kuni 2025 detsember tegevuskava'!G45='kuni 2025 detsember tegevuskava'!$G$99,3,'kuni 2025 detsember tegevuskava'!G45='kuni 2025 detsember tegevuskava'!$G$100,4) -> 1 | H102: =_xlfn.IFS(OR('kuni 2025 detsember tegevuskava'!P45='kuni 2025 detsember tegevuskava'!$P$97,'kuni 2025 detsember tegevuskava'!P45='kuni 2025 detsember tegevuskava'!$P$99,'kuni 2025 detsember tegevuskava'!P45='kuni 2025 detsember tegevuskava'!$P$100,'kuni 2025 detsember tegevuskava'!P45='kuni 2025 detsember tegevuskava'!$P$101),1,'kuni 2025 detsember tegevuskava'!P45='kuni 2025 detsember tegevuskava'!$P$102,2,'kuni 2025 detsember tegevuskava'!P45='kuni 2025 detsember tegevuskava'!$P$103,2,'kuni 2025 detsember tegevuskava'!P45='kuni 2025 detsember tegevuskava'!$P$98,3) -> 1 | I102: =SUM(I103:I104) -> 42,957 | K102: =SUM(K103:K104) -> 14,933 | M102: =SUM(M103:M104) -> 28,024 | O102: =SUM(O103:O104) -> 0
I103: =SUM(K103+M103+O103) -> 32,171 | J103: ="(50)" -> (50) | K103: ='kuni 2025 detsember tegevuskava'!Y45 -> 12,647 | L103: ="(50)" -> (50) | M103: ='kuni 2025 detsember tegevuskava'!AB45 -> 19,524 | N103: ="(50)" -> (50) | O103: ='kuni 2025 detsember tegevuskava'!AE45 -> 0 | P103: ="(50)" -> (50)
I104: =SUM(K104+M104+O104) -> 10,786 | J104: ="(55)" -> (55) | K104: ='kuni 2025 detsember tegevuskava'!Z45 -> 2,286 | L104: ="(55)" -> (55) | M104: ='kuni 2025 detsember tegevuskava'!AC45 -> 8,500 | N104: ="(55)" -> (55) | O104: ='kuni 2025 detsember tegevuskava'!AF45 -> 0 | P104: ="(55)" -> (55)
I105: Summa koos käibemaksuga:
I106: =SUM(I107:I108) -> 45,284 | K106: =SUM(K107:K108) -> 15,390 | M106: =SUM(M107:M108) -> 29,894 | O106: =SUM(O107:O108) -> 0
I107: =SUM(K107+M107+O107) -> 32,171 | J107: ="(50)" -> (50) | K107: =K103 -> 12,647 | L107: ="(50)" -> (50) | M107: =M103 -> 19,524 | N107: ="(50)" -> (50) | O107: =O103 -> 0 | P107: ="(50)" -> (50)
I108: =SUM(K108+M108+O108) -> 13,113 | J108: ="(55)" -> (55) | K108: =SUM(K104*1.2) -> 2,743 | L108: ="(55)" -> (55) | M108: =SUM(M104*1.22) -> 10,370 | N108: ="(55)" -> (55) | O108: =SUM(O104*1.22) -> 0 | P108: ="(55)" -> (55)
B110: Veerg: „Rahastuse allikas / meetme tegevus (SF)“: 1 – (Baaseelarve, RES, reserv SR) – summad kajastatakse ilma käibemaksuta ja käibemaks arvestatakse juurde riigieelarvest; 2 – (SF, nii 14-20, kui 21-27) – toetuse summad kajastatakse koos käibemaksuga, käibemaks on osa toetusest; 3 – (RRF) – toetuse summad kajastatakse ilma käibemaksuta, käibemaks lisandub toetusele. 4 – (muu rahastus) – summad kajastatakse ilma käibemaksuta, elluviija vastutab sõltuvalt rahastusest õige käibemaksu vormi rakendamise eest.
B112: Liisa-Ly Pakosta
B113: justiits- ja digiminister
B114: (allkirjastatud digitaalselt)

Sheet Ettekande arvutused (hidden)
A2: 2023 eelarve täitmine
B4: Liikide lõikes​ | C4: Eelarve täitmine 31.12.2023
C5: Eelarve​ | D5: Täitmine​ | E5: Jääk​ | F5: Täitmise %​
B6: Kokku​ | C6: =SUM(C7:C9) -> 356,235 | D6: =SUM(D7:D9) -> 316,017 | E6: 40,218 | F6: =SUM(D6/C6) -> 89%
B7: Riigieelarve​ | C7: 120,000 | D7: 120,000 | E7: =SUM(C7-D7) -> 0 | F7: =SUM(D7/C7) -> 100%
B8: Välistoetused​ | C8: =121017+40218 -> 161,235 | D8: 121,017 | E8: =SUM(C8-D8) -> 40,218 | F8: =SUM(D8/C8) -> 75%
B9: Muud​ (liikmemaks) | C9: 75,000 | D9: 75,000 | E9: =SUM(C9-D9) -> 0 | F9: =SUM(D9/C9) -> 100%
B18: Majandusliku sisu lõikes​ | C18: Eelarve täitmine 31.12.2023
C19: Eelarve​ | D19: Täitmine​ | E19: Jääk​ | F19: Täitmise %​
B20: Kokku​ | C20: =SUM(C21:C24) -> 356,220 | D20: =SUM(D21:D24) -> 316,002 | E20: 40,218 | F20: =SUM(D20/C20) -> 89%
B21: Investeeringud​ | C21: 143,022 | D21: 143,022 | E21: =SUM(C21-D21) -> 0 | F21: =SUM(D21/C21) -> 100%
B22: Tööjõukulud | C22: =155000+34218 -> 189,218 | D22: 155,000 | E22: =SUM(C22-D22) -> 34,218 | F22: =SUM(D22/C22) -> 82%
B23: ​Majandamiskulud​ | C23: =17980+6000 -> 23,980 | D23: 17,980 | E23: =SUM(C23-D23) -> 6,000 | F23: =SUM(D23/C23) -> 75%
A33: 2024 eelarve
B35: Liikide lõikes​ | C35: 2024
B36: Kokku | C36: =SUM(C37:C39) -> 811,400
B37: Riigieelarve​ | C37: 60,000
B38: Välistoetused​ | C38: 689,400
B39: Muud​ | C39: 62,000
B41: Majandusliku sisu lõikes​ | C41: 2024
B42: Kokku | C42: =SUM(C43:C46) -> 869,731
B43: Investeeringud​ | C43: 347,431
B44: Tööjõukulud | C44: 215,300
B45: ​Majandamiskulud​ | C45: 307,000
B46: ​Toetused ja muud | C46: 0
A49: Personali muutus
B52: Valitsemisala IKT töötajate arv​ | C52: 2021-01-01 | D52: 2022-01-01 | E52: 2023-01-01 | F52: 2024-01-01 | G52: 01.01.2025*​ | H52: 01.01.2026*​ | I52: 01.01.2027*​
B53: Töötajate arv ​ | C53: 2 | D53: 3 | E53: 3 | F53: 4 | G53: 5 | H53: 5 | I53: 5
B54: Kasv​ (%, võrrelduna eelmise aastaga) | C54: 0 | D54: =SUM(((D53/C53)*100)-100) -> 50.0 | E54: 0.0 | F54: 16.7 | G54: 28.6 | H54: 11.1 | I54: 0.0
B55: * Prognoos
C69: Seisuga 01.01.2023 | F69: Seisuga 01.01.2024
B70: IKT Personal | C70: Täidetud/olemas | D70: Täitmata | E70: Kokku | F70: Täidetud/olemas | G70: Täitmata | H70: Kokku
B71: Kokku | C71: =SUM(C72:C83) -> 26 | D71: 9 | E71: 35 | F71: 28 | G71: 17 | H71: 45
B72: andmekorraldusanalüütik​ | C72: 2 | D72: 1 | E72: =SUM(C72:D72) -> 3 | F72: 2 | G72: 1 | H72: =SUM(F72:G72) -> 3
B73: andmekvaliteedi kontrolli spetsialist​ | C73: 3 | D73: 0 | E73: 3 | F73: 5 | G73: 0 | H73: 5
B74: andmelao arendaja​ | C74: 2 | D74: 0 | E74: 2 | F74: 2 | G74: 8 | H74: 10
B75: jurist - ei ole kavas lähiajal täita​ | C75: 2 | D75: 2 | E75: 4 | F75: 2 | G75: 2 | H75: 4
B76: projektijuht​ | C76: 4 | D76: 2 | E76: 6 | F76: 4 | G76: 2 | H76: 6
B77: rakenduste administraator​ | C77: 0 | D77: 0 | E77: 0 | F77: 0 | G77: 0 | H77: 0
B78: riskijuht​ | C78: 2 | D78: 0 | E78: 2 | F78: 2 | G78: 0 | H78: 2
B79: süsteemiadministraator​ | C79: 2 | D79: 1 | E79: 3 | F79: 2 | G79: 1 | H79: 3
B80: tarkvara arhitekt​ | C80: 1 | D80: 0 | E80: 1 | F80: 1 | G80: 0 | H80: 1
B81: testija​ | C81: 5 | D81: 2 | E81: 7 | F81: 5 | G81: 2 | H81: 7
B82: tooteomanik​ | C82: 3 | D82: 1 | E82: =SUM(C82:D82) -> 4 | F82: 3 | G82: 1 | H82: =SUM(F82:G82) -> 4
B83: … | E83: 0 | H83: 0
B84: NB! Tabelis tuua välja valitsemisala kõik IKT ametikohad. Vajadusel lisada ridu juurde.
B87: Andmeturve | C87: Analüütik (teabe)
B88: Arvutigraafika | C88: Andmeanalüüs
B89: Juhtimine | C89: Andmeanalüüs ja -seire
B90: Konsultandid | C90: Andmebaasiadministratsioon
B91: Projektijuhtimine | C91: Andmehaldur
B92: Süsteemiadministratsioon | C92: Andmeteadur (teabe)
B93: Süsteemianalüüs | C93: DEVOPS
B94: Süsteemiarhitektuur | C94: Haldus
B95: Tarkvara programmeerimine | C95: Helpdesk
B96: Teenuste tugi | C96: infoturbe logianalüütik
B97: Testimine | C97: Infoturbespetsialist
C98: IS haldur
C99: IS ärianalüütik
C100: IT analüütik
C101: Klienditeenindus
C102: küber pääsuhalduste spetsialist
C103: Küberinsener
C104: küberintsidentide haldur
C105: Küberkaitse spetsialist
C106: Masinõpe
C107: Rakenduse administraator
C108: Registripidaja
C109: Tarneinsener
C110: Teenuseomanik
C111: Tootejuhtimine

Sheet Personal (hidden)
A1: Projekti/tegevuse nimi | B1: Digipöörde elluviimisega seotud personal tööperede lõikes | C1: Digipöörde elluviimisega seotud personal tööperede lõikes | D1: Digipöörde elluviimisega seotud personal tööperede lõikes | E1: Mis aastal on töötaja värvatud / plaanis värvata? | J1: Kas on võtmetähtsusega? | K1: Kas töötaja on olemas või tuleb värvata? | L1: Aastane palgakulu | M1: Või kas roll on plaanis teenusena sisse osta? | N1: Teenusena sisse ostmisel maksumus | O1: Kui pikaks ajaks inimene värvatakse, roll teenusena sisse ostetakse? | P1: Milline on koormus digipöördes? | Q1: Värvatud või teenusena sisse ostetutud töötaja rahastamise allikas
A2: ("2a tegevuskava" lehe J veerg) | B2: (Tööpere nimetus, iga töötaja eraldi real) | C2: (Tööpere taseme number) | D2: (Tööpere nimetuse täpsustav selgitus) | E2: (märkida x-ga) | J2: (Jah/Ei) | K2: (On olemas / Tuleb värvata tööjõukulu, 50) | L2: (olemasolev töötaja, või värvatav) | M2: (Jah / EI majandamiskulu, 55) | N2: Kui lühiajaline (alla aasta), siis kogu maksumus, kui pikemaajaline (üle 1 aasta), siis aasta maksumus) | O2: (kuuks ajaks, aastaks, kogu digipöörde ajaks, jne) | P2: (% tööajast) | Q2: (Baaseelarve/SF)
E3: 2023 | F3: 2024 | G3: 2025 | H3: 2026 | I3: 2027
A4: KOV avalike teenuste kaardistamise mudel ja ühtne kasutajate rahulolu mõõtmise süsteem | B4: Projektijuhtimine | C4: 3 | D4: Teenuseomanik | F4: x | J4: Jah | K4: olemas | L4: 25,609 | M4: ei | O4: digipöörde ajaks | P4: 0.5 | Q4: SF
A5: KOV rahvahääletuste ja koosolekute digilahendus | B5: Projektijuhtimine | C5: 3 | D5: Tootejuhtimine | F5: x | J5: Jah | K5: olemas | L5: 29,286 | M5: ei | O5: digipöörde ajaks | P5: 0.6 | Q5: SF
A6: Küberturvalisuse tagamise tugi KOVidele | B6: Projektijuhtimine | C6: 2 | D6: Infoturbespetsialist | F6: x | J6: Jah | K6: olemas | L6: 29,286 | M6: ei | O6: digipöörde ajaks | P6: 0.6 | Q6: SF
A7: Küberturvalisuse tagamise tugi KOVidele | B7: Konsultandid | C7: 2 | D7: Infoturbespetsialist | F7: x | J7: Ei | K7: olemas | L7: 20,000 | M7: ei | N7: E-ITS mentorite käsunduslepingud | O7: 2 aastat | P7: nõustatud tundide alusel | Q7: SF
A8: Avaandmete avaldamise ja andmehalduse tugi KOVidele | B8: Andmeturve | C8: 2 | D8: Andmeanalüüs | F8: x | J8: Jah | K8: olemas | L8: 48,168 | M8: ei | O8: 3 aastat | P8: 1 | Q8: SF
A9: KOV teenuste keskse platvormi eelanalüüs | B9: Süsteemiarhitektuur | C9: 2 | D9: IT analüütik | G9: x | J9: Jah | K9: puudu | L9: 32,850 | M9: ei | O9: 3 aastat | P9: 0.5 | Q9: SF
A10: ELVL IKT Kompetentsikeskuse baasrahastus | B10: Juhtimine | C10: 3 | D10: Teenuseomanik | F10: x | J10: Jah | K10: olemas | L10: 25,609 | M10: ei | O10: digipöörde ajaks | P10: 0.5 | Q10: baaseelarve
A11: ELVL IKT Kompetentsikeskuse baasrahastus | B11: Projektijuhtimine | C11: 3 | D11: Tootejuhtimine | F11: x | J11: ei | K11: olemas | L11: 21,676 | M11: ei | N11: käsundusleping | O11: 1 aasta | P11: 0.4 | Q11: baaseelarve
A12: Lähedase surma sündmusteenuse juhtimine | B12: Projektijuhtimine | C12: 3 | D12: Teenuseomanik | F12: x | J12: Jah | K12: olemas | L12: 19524 | M12: ei | O12: 2 aastat | P12: 0.4 | Q12: RRF
L23: 187400 | P23: =SUM(P4:P19) -> 4.5
B26: Andmeturve | C26: 1 | D26: Analüütik (teabe)
B27: Arvutigraafika | C27: 2 | D27: Andmeanalüüs
B28: Juhtimine | C28: 3 | D28: Andmeanalüüs ja -seire
B29: Konsultandid | C29: 4 | D29: Andmebaasiadministratsioon
B30: Projektijuhtimine | D30: Andmehaldur
B31: Süsteemiadministratsioon | D31: Andmeteadur (teabe)
B32: Süsteemianalüüs | D32: DEVOPS
B33: Süsteemiarhitektuur | D33: Haldus
B34: Tarkvara programmeerimine | D34: Helpdesk
B35: Teenuste tugi | D35: infoturbe logianalüütik
B36: Testimine | D36: Infoturbespetsialist
D37: IS haldur
D38: IS ärianalüütik
D39: IT analüütik
D40: Klienditeenindus
D41: küber pääsuhalduste spetsialist
D42: Küberinsener
D43: küberintsidentide haldur
D44: Küberkaitse spetsialist
D45: Masinõpe
D46: Rakenduse administraator
D47: Registripidaja
D48: Tarneinsener
D49: Teenuseomanik
D50: Tootejuhtimine
